{"text_format":"1","workbook":"xlsx","n_sheets":3,"sheets":["VMware FINAL ORDER SUMMARY","Product & Price List","Click to Quote"],"not_rendered":{"charts":0,"images":4,"macros":1,"external_links":1,"defined_names":2,"comments":1,"pivot_tables":0},"unopened":[],"bounds":{"document_bytes":16777216,"sheet_cells":100000,"rows_first":2000,"rows_last":500,"rows_between":2000,"halvings":0,"cell_chars":16384,"cell_head_chars":4096},"cells_cut":0,"cells_raw":0,"read":"whole","date_system":"1900"}

{"sheet":"VMware FINAL ORDER SUMMARY","index":0,"n_rows":194,"n_cols":19,"rows_kept":194,"cut":false,"hidden":false,"merged":[[99,7,99,8],[95,5,95,6],[96,5,96,6],[93,5,93,6],[94,5,94,6],[98,15,98,17],[99,15,99,17],[91,5,91,6],[98,5,98,6],[95,7,95,8],[95,15,95,17],[96,7,96,8],[96,15,96,17],[92,15,92,17],[93,7,93,8],[93,15,93,17],[94,7,94,8],[92,5,92,6],[92,7,92,8],[94,15,94,17],[97,5,97,6],[97,7,97,8],[97,15,97,17],[90,5,90,6],[98,7,98,8],[90,7,90,8],[73,9,73,11],[81,5,81,6],[73,5,73,8],[80,15,80,17],[75,5,75,6],[75,7,75,8],[75,15,75,17],[76,15,76,17],[76,7,76,8],[77,7,77,8],[84,7,84,8],[88,5,88,8],[77,15,77,17],[76,5,76,6],[77,5,77,6],[79,5,79,6],[83,7,83,8],[88,9,88,11],[79,15,79,17],[78,7,78,8],[89,5,89,6],[74,7,74,8],[78,15,78,17],[38,6,39,18],[41,6,41,9],[42,12,42,18],[42,6,42,9],[43,6,43,9],[44,6,44,9],[45,6,45,9],[74,5,74,6],[43,12,43,18],[68,6,68,13],[72,5,72,17],[74,15,74,17],[49,5,49,18],[146,6,146,7],[146,8,146,14],[147,6,147,7],[147,8,147,14],[0,6,0,17],[3,5,3,18],[83,15,83,17],[84,15,84,17],[83,5,83,6],[84,5,84,6],[78,5,78,6],[114,5,114,13],[125,5,125,6],[41,12,41,18],[119,5,119,6],[119,12,119,13],[121,5,121,6],[121,12,121,13],[119,7,119,8],[88,12,88,17],[73,12,73,17],[120,5,120,6],[44,12,44,18],[45,12,45,18],[125,12,125,13],[125,7,125,8],[121,15,127,18],[126,12,127,13],[126,11,127,11],[121,7,121,8],[122,5,122,6],[123,5,123,6],[124,5,124,6],[104,10,105,10],[100,15,100,17],[91,7,91,8],[117,12,117,13],[117,5,117,6],[115,7,115,8],[116,7,116,8],[115,5,115,6],[106,7,106,8],[116,5,116,6],[117,15,120,18],[120,7,120,8],[118,12,118,13],[120,12,120,13],[118,7,118,8],[118,5,118,6],[115,12,115,13],[115,15,116,18],[116,12,116,13],[111,6,111,8],[106,5,106,6],[117,7,117,8],[91,15,91,17],[99,5,99,6],[156,7,156,14],[157,7,157,14],[158,7,158,14],[149,8,149,9],[151,7,151,14],[136,7,136,14],[80,7,80,8],[79,7,79,8],[81,15,81,17],[85,5,85,14],[81,7,81,8],[82,5,82,6],[80,5,80,6],[82,15,82,17],[90,15,90,17],[104,7,105,8],[89,7,89,8],[104,11,105,11],[82,7,82,8],[104,9,105,9],[89,15,89,17],[85,15,85,17],[104,5,105,6],[100,5,100,14],[174,6,175,8],[133,6,133,16],[122,7,122,8],[122,12,122,13],[123,7,123,8],[123,12,123,13],[124,7,124,8],[124,12,124,13],[148,6,148,7],[148,8,148,14],[141,7,141,14],[142,7,142,14],[144,6,144,12],[170,7,170,9],[173,6,173,16],[160,7,160,14],[161,7,161,14],[162,7,162,14],[167,7,167,14],[168,7,168,14],[169,7,169,9],[152,7,152,14],[153,7,153,14],[154,7,154,14]]}
[null,"NEW","UPGRADE","RENEWAL",null,"Version 27"]
[]
[]
[null,null,null,null,null,"OARnet/ VMware - VIRTUALIZATION PROGRAM ORDER FORM"]
[]
[]
[]
[]
[]
[]
[]
[]
[]
[]
[]
[]
[]
[]
[null,"AIRWATCH","••••••••••••  AIRWATCH •••••••••••• ","AIRWATCH"]
[null,"• AirWatch by VMware Secure Content Locker Collaborate",null,"• AirWatch by VMware Secure Content Locker Collaborate"]
[null,"• AirWatch by VMware Mgt Suite for Laptops","AIRWATCH SERCURE CONTENT LOCKER COLLABORATE","• AirWatch by VMware Management Suite for Laptops"]
[null,"• AirWatch by VMware Mgt Suite for Rugged Devices","• Upgrade: AirWatchSecContentLockView to S.C.L. Collaborate","• AirWatch by VMware Management Suite for Rugged Devices"]
[null,"• AirWatch by VMware Green Mgt Suite",null,"• AirWatch by VMware Green Management Suite"]
[null,"• AirWatch by VMware Orange Mgt Suite","AIRWATCH ORANGE MGMT SUITE","• AirWatch by VMware Orange Management Suite"]
[null,"• AirWatch by VMware Blue Mgt Suite Perpetual, One Time Fee / Device","• Upgrade: AirWatch Green Mgmt Suite to Orange Mgmt Suite","• AirWatch by VMware Blue Management Suite"]
[null,"• AirWatch by VMware Yellow Mgt Suite - Perpetual, One Time Fee / Device",null,"• AirWatch by VMware Yellow Management Suite"]
[null,null,"AIRWATCH BLUE MGMT SUITE"]
[null,"APP VOLUME","• Upgrade: AirWatch Green Mgt STE to Blue Mgt STE - Perpetual, 1XFee/Device","APP VOLUME"]
[null,"• App Volumes 10 Pack (CCU)","• Upgrade: AirWatch Orange Mgt STE to Blue Mgt STE - Perpetual, 1XFee/Device","• App Volumes 10 Pack (CCU)"]
[null,"• App Volumes 100 Pack (CCU)",null,"• App Volumes 100 Pack (CCU)"]
[null,null,"AIRWATCH YELLOW MGMT SUITE"]
[null,"CONTINUENT","• Upgrade: AirWatchMobileDev&ContentLockerView to Yellow Mgt STE - Perpl, 1X Fee/Dev  ***Upgrade from Mobile Device Mgt & AirWatch Content Locker View to Yellow Mgt Suite - Perpetual, One Time Fee / Device","CONTINUENT"]
[null,"• Continuent for Analytics & Big Data - Per Cluster License","• Upgrade:  AirWatch Green Mgt STE to Yellow Mgt STE - Perpetual, 1XFee/Device","• Continuent for Analytics & Big Data - Per Cluster License"]
[null,"• Continuent for Clustering - Per Database Server License","• Upgrade: AirWatch Orange Mgt STE to Yellow Mgt STE - Perpetual, 1X ee/Device","• Continuent for Clustering - Per Database Server License"]
[null,"• Continuent for Disaster Recovery - Per Database Server License","• Upgrade: AirWatch Blue Mgt STE to Yellow Mgt STE - Perpetual, 1XFee/Device","• Continuent for Disaster Recovery - Per Database Server License"]
[null,"• Continuent for Replication - Per Database Server License",null,"• Continuent for Replication - Per Database Server License"]
[]
[null,"• Horizon View Standard Edition (100 pack) (CCU)","FUSION","• Horizon Workspace Portal: 100 pack"]
[null,"• Horizon Workspace Portal: 10 pack","• Upgrade: Fusion to Fusion Professional Edition, ESD",null,null,null,"IN WITNESS WHEREOF, each party hereto warrants and represents that this Order Form has been executed by a duly authorized representative of such party, and it constitutes the legal, valid and binding obligation of such party."]
[null,"• Horizon Workspace Portal: 100 pack",null,"IT BUSINESS/FINANCIAL MANAGEMENT"]
[]
[null,null,"•••••••••••• HORIZON •••••••••••• ","• IT Business Management Foundation package",null,null,"OHIO ACADEMIC RESOURCES NETWORK - OARNET",null,null,null,null,"End User:"]
[null,"IT BUSINESS MANAGEMENT (ITBM)","HORIZON VIEW STANDARD ADD-ON","• IT Business Management Additional User",null,"By:",null,null,null,null,null,"Signature:"]
[null,"• IT Business Mgt Foundation package","• Upgrade: ThinAppClient to Horizon View STD Add-On (10pack)","• IT Business Management Read-Only",null,"Name:","Pankaj Shah",null,null,null,null,"Name:"]
[null,"• IT Business Mgt Additional User","• Upgrade: HorizonViewENT Add-on to ViewSTDAdd-On (10pack)","• IT Business Management Suite Standard (25 OSI pack)",null,"Title:","Executive Director, OARnet",null,null,null,null,"Title:"]
[null,"• IT Business Mgt Read-Only","• Upgrade: HorizonViewENT Add-on to ViewSTDAdd-On (100pack)","• IT Financial Management Foundation package",null,"Date:",null,null,null,null,null,"Date:"]
[null,"• IT Financial Mgt Foundation package",null,"• IT Financial Management Additional User"]
[null,"• IT Financial Mgt Read-Only","• Upgrade: Workspace to HorizonADV (10pk)(Named Users)"]
[null,"• vRealize Business Advanced Additional User - perpetual license for 5 users","• Upgrade: HorizonMirage to HorizonADV (10pk)(Named Users)","MIRAGE"]
[null,"• vRealize Business Advanced Foundation Package - perpetual license for 5 users","• Upgrade: MiragePhysical to HorizonADV (10pk)(Named Users)","• Mirage for Physical: 10 Pack",null,"END USER CONTACT INFORMATION"]
[null,"• vRealize Business Advanced Read-Only Perpetual License for 5 users","• Upgrade: Workspace to HorizonADV (100pk)(Named Users)","• Mirage for Physical: 100 Pack",null,null,"Entity / Customer / End User Name:"]
[null,"• vRealize Business Enterprise Additional User - perpetual license for 5 users","• Upgrade: HorizonMirage to HorizonADV (100pk)(Named Users)",null,null,null,"Portal Folder Name (if known):"]
[null,"• vRealize Business Enterprise Foundation Package - perpetual license for 10 users","• Upgrade: MiragePhysical to HorizonADV (100pk)(Named Users)","NSX"]
[null,"•  vRealize Business Enterprise Read-Only Perpetual License for 5 users",null,"• NSX for Multi-Hypervisor per Processor"]
[null,null,"HORIZON ADVANCED (CONCURRENT USERS)","• NSX vSphere  ",null,null,"Technical Contact (Primary):",null,null,null,"Billing Contact"]
[null,"MIRAGE","• Upgrade: Horizon Mirage to Horizon ADV (10 pack) (CCU)","• NSX vSphere - vCloud Suite Add-on",null,"Name:",null,null,null,"Name:"]
[null,"• Mirage for Physical: 10 Pack","• Upgrade: MiragePhysical to Horizon ADV (10 Pack) (CCU)",null,null,"Address:",null,null,null,"Address:"]
[null,"• Mirage for Physical: 100 Pack","• Upgrade: Horizon View Add-on to Horizon ADV (10 pack) (CCU)","PIVOTAL",null,"City/State/Zip:",null,null,null,"City/State/Zip:"]
[null,null,"• Upgrade: Horizon View STD to ADV (10 pack) (CCU)","• Pivotal GemFire XD (Per Core)",null,"Phone:",null,null,null,"Phone:"]
[null,"NSX / NICIRA","• Upgrade: Horizon Mirage to Horizon ADV (100 pack) (CCU)",null,null,"Email:",null,null,null,"Email:"]
[null,"• NSX for Multi-Hypervisor per Processor","• Upgrade: MiragePhysical to Horizon ADV (100 Pack) (CCU)","PLAYER"]
[null,"• NSX vSphere  ","• Upgrade: Horizon View Add-on to Horizon ADV (100 pack) (CCU)","• Player Pro"]
[null,"• NSX vSphere - vCloud Suite Add-on","• Upgrade: Horizon View STD to ADV (100 pack) (CCU)"]
[null,null,null,"THINAPP"]
[null,"PIVOTAL","HORIZON ENTERPRISE (NAMED USERS)","• ThinApp Suite"]
[null,"• Pivotal App Suite v2 Perpetual License (1 core)","• Upgrade: Horizon ADV to ENT (10 pack) (Named Users)","• ThinApp Client (100 pack)"]
[null,null,null,"VIRTUAL SAN"]
[null,"PLAYER","HORIZON ENTERPRISE (CONCURRENT USERS)","• Virtual SAN for 1-Processor"]
[null,"• Player Pro","• Upgrade: App Volumes to Horizon ENT (10 Pack) (CCU)","• Virtual SAN for Desktop (10 pack) CCU",null,"CUSTOMER:",{"$f":"IF(H51=\"\",\"\",H51)","v":""}]
[null,null,"• Upgrade: Horizon View Add-on to Horizon ENT (10 pack) (CCU)","• Virtual SAN for Desktop (100 pack) CCU"]
[null,"THINAPP","• Upgrade: Horizon View STD to ENT (10 pack) (CCU)",null,null,"ATTACHMENT 1 - ORDER SUMMARY"]
[null,"• ThinApp Suite","• Upgrade: Horizon ADV to ENT (10 pack) (CCU)","vCENTER CONFIGURATION MANAGER"]
[null,"• ThinApp Client (100 pack)","• Upgrade: App Volumes to Horizon ENT (100 Pack) (CCU)","• vCenter Configuration Manager Workstation - Linux/Windows",null,"NEW VMWARE LICENSES and MAINTENANCE"]
[null,null,"• Upgrade: Horizon View Add-on to Horizon ENT (100 pack) (CCU)",null,null,"VMware Products",null,null,null,"License Fees",null,null,"Maintenance Fees"]
[null,"USER ENVIRONMENT MANAGER","• Upgrade: Horizon View STD to ENT (100 pack) (CCU)","vCENTER LOG INSIGHT",null,"Product",null,"Product Code",null,"Qty","License Fee","License Total","SnS Term","SnS Fee","SnS Total","SnS Code",null,null,"Total Cost"]
[null,"• User Environment Manager: 10 Pack (CCU)","• Upgrade: Horizon ADV to ENT (100 pack) (CCU)","• vCenter Log Insight per CPU",null,null,null,{"$f":"IF(OR(F76=\"\",ISNUMBER(F76)),\"\",VLOOKUP(F76,'Product & Price List'!$D$17:$H$173,2,FALSE))","v":""},null,null,{"$f":"IF(OR(F76=\"\",ISNUMBER(F76)),\"\",VLOOKUP(F76,'Product & Price List'!$D$17:$H$173,4,FALSE))","v":""},{"$f":"IF(OR(F76=\"\",ISNUMBER(F76)),\"\",J76*K76)","v":""},null,{"$f":"IF(OR(F76=\"\",ISNUMBER(F76)),\"\",VLOOKUP(F76,'Product & Price List'!$D$17:$H$173,5,FALSE))","v":""},{"$f":"IF(OR(F76=\"\",ISNUMBER(F76)),\"\",J76*M76*N76)","v":""},{"$f":"IF(OR(F76=\"\",ISNUMBER(F76)),\"\",VLOOKUP(F76,'Product & Price List'!$D$17:$H$171,3,FALSE))","v":""},null,null,{"$f":"IF(OR(F76=\"\",ISNUMBER(F76)),0,L76+O76)","v":0}]
[null,"• User Environment Manager: 10 Pack (Named Users)","HORIZON FLEX","• vCenter Log Insight (25 OSI pack)",null,null,null,{"$f":"IF(OR(F77=\"\",ISNUMBER(F77)),\"\",VLOOKUP(F77,'Product & Price List'!$D$17:$H$173,2,FALSE))","v":""},null,null,{"$f":"IF(OR(F77=\"\",ISNUMBER(F77)),\"\",VLOOKUP(F77,'Product & Price List'!$D$17:$H$173,4,FALSE))","v":""},"",null,{"$f":"IF(OR(F77=\"\",ISNUMBER(F77)),\"\",VLOOKUP(F77,'Product & Price List'!$D$17:$H$173,5,FALSE))","v":""},"",{"$f":"IF(OR(F77=\"\",ISNUMBER(F77)),\"\",VLOOKUP(F77,'Product & Price List'!$D$17:$H$171,3,FALSE))","v":""},null,null,{"$f":"IF(OR(F77=\"\",ISNUMBER(F77)),0,L77+O77)","v":0}]
[null,"• User Environment Manager: 100 Pack (CCU)","• Upgrade: Fusion 5 or 6 Pro to Horizon FLEX per Device",null,null,null,null,{"$f":"IF(OR(F78=\"\",ISNUMBER(F78)),\"\",VLOOKUP(F78,'Product & Price List'!$D$17:$H$173,2,FALSE))","v":""},null,null,{"$f":"IF(OR(F78=\"\",ISNUMBER(F78)),\"\",VLOOKUP(F78,'Product & Price List'!$D$17:$H$173,4,FALSE))","v":""},"",null,{"$f":"IF(OR(F78=\"\",ISNUMBER(F78)),\"\",VLOOKUP(F78,'Product & Price List'!$D$17:$H$173,5,FALSE))","v":""},"",{"$f":"IF(OR(F78=\"\",ISNUMBER(F78)),\"\",VLOOKUP(F78,'Product & Price List'!$D$17:$H$171,3,FALSE))","v":""},null,null,0]
[null,"• User Environment Manager: 100 Pack (Named Users)","• Upgrade: Fusion Pro/Player Pro to Horizon FLEX per Device","vCENTER OPERATIONS MANAGEMENT",null,null,null,{"$f":"IF(OR(F79=\"\",ISNUMBER(F79)),\"\",VLOOKUP(F79,'Product & Price List'!$D$17:$H$173,2,FALSE))","v":""},null,null,{"$f":"IF(OR(F79=\"\",ISNUMBER(F79)),\"\",VLOOKUP(F79,'Product & Price List'!$D$17:$H$173,4,FALSE))","v":""},"",null,{"$f":"IF(OR(F79=\"\",ISNUMBER(F79)),\"\",VLOOKUP(F79,'Product & Price List'!$D$17:$H$173,5,FALSE))","v":""},"",{"$f":"IF(OR(F79=\"\",ISNUMBER(F79)),\"\",VLOOKUP(F79,'Product & Price List'!$D$17:$H$171,3,FALSE))","v":""},null,null,0]
[null,null,null,"• vCenter Operations Mgmt Suite STD (25 VM pack)",null,null,null,{"$f":"IF(OR(F80=\"\",ISNUMBER(F80)),\"\",VLOOKUP(F80,'Product & Price List'!$D$17:$H$173,2,FALSE))","v":""},null,null,{"$f":"IF(OR(F80=\"\",ISNUMBER(F80)),\"\",VLOOKUP(F80,'Product & Price List'!$D$17:$H$173,4,FALSE))","v":""},"",null,{"$f":"IF(OR(F80=\"\",ISNUMBER(F80)),\"\",VLOOKUP(F80,'Product & Price List'!$D$17:$H$173,5,FALSE))","v":""},"",{"$f":"IF(OR(F80=\"\",ISNUMBER(F80)),\"\",VLOOKUP(F80,'Product & Price List'!$D$17:$H$171,3,FALSE))","v":""},null,null,0]
[null,"vCENTER ","NSX for MULTI-HYPERVISOR","• vCenter Operations Mgmt Suite ADV (25 OperatingSysInstance pack)",null,null,null,{"$f":"IF(OR(F81=\"\",ISNUMBER(F81)),\"\",VLOOKUP(F81,'Product & Price List'!$D$17:$H$173,2,FALSE))","v":""},null,null,{"$f":"IF(OR(F81=\"\",ISNUMBER(F81)),\"\",VLOOKUP(F81,'Product & Price List'!$D$17:$H$173,4,FALSE))","v":""},"",null,{"$f":"IF(OR(F81=\"\",ISNUMBER(F81)),\"\",VLOOKUP(F81,'Product & Price List'!$D$17:$H$173,5,FALSE))","v":""},"",{"$f":"IF(OR(F81=\"\",ISNUMBER(F81)),\"\",VLOOKUP(F81,'Product & Price List'!$D$17:$H$171,3,FALSE))","v":""},null,null,0]
[null,"• vCenter Configuration Manager Workstation - Linux/Windows","• Upgrade: NSX vSphere-vCloudSteAdd-on to NSX Multi-Hypervisor ***Upgrade: NSX for vSphere - vCloud Suite Add-on to VMware NSX for Multi-Hypervisor","• vCenter Operations Mgmt Suite ENT (25 OperatingSysInstance pack)",null,null,null,{"$f":"IF(OR(F82=\"\",ISNUMBER(F82)),\"\",VLOOKUP(F82,'Product & Price List'!$D$17:$H$173,2,FALSE))","v":""},null,null,{"$f":"IF(OR(F82=\"\",ISNUMBER(F82)),\"\",VLOOKUP(F82,'Product & Price List'!$D$17:$H$173,4,FALSE))","v":""},"",null,{"$f":"IF(OR(F82=\"\",ISNUMBER(F82)),\"\",VLOOKUP(F82,'Product & Price List'!$D$17:$H$173,5,FALSE))","v":""},"",{"$f":"IF(OR(F82=\"\",ISNUMBER(F82)),\"\",VLOOKUP(F82,'Product & Price List'!$D$17:$H$171,3,FALSE))","v":""},null,null,0]
[null,"• vCenter Operations Mgt pack for EPIC","• Upgrade: NSX for vSphere to NSX for Multi-Hypervisor","• vCenter Operations Management pack for EPIC",null,null,null,{"$f":"IF(OR(F83=\"\",ISNUMBER(F83)),\"\",VLOOKUP(F83,'Product & Price List'!$D$17:$H$173,2,FALSE))","v":""},null,null,{"$f":"IF(OR(F83=\"\",ISNUMBER(F83)),\"\",VLOOKUP(F83,'Product & Price List'!$D$17:$H$173,4,FALSE))","v":""},"",null,{"$f":"IF(OR(F83=\"\",ISNUMBER(F83)),\"\",VLOOKUP(F83,'Product & Price List'!$D$17:$H$173,5,FALSE))","v":""},"",{"$f":"IF(OR(F83=\"\",ISNUMBER(F83)),\"\",VLOOKUP(F83,'Product & Price List'!$D$17:$H$171,3,FALSE))","v":""},null,null,0]
[null,"• vCenter Server Foundation for vSphere up to 3 hosts (Per Instance)","PLAYER PRO","• vCenter Operations Manager for View: 10 Concur. User pack",null,null,null,{"$f":"IF(OR(F84=\"\",ISNUMBER(F84)),\"\",VLOOKUP(F84,'Product & Price List'!$D$17:$H$173,2,FALSE))","v":""},null,null,{"$f":"IF(OR(F84=\"\",ISNUMBER(F84)),\"\",VLOOKUP(F84,'Product & Price List'!$D$17:$H$173,4,FALSE))","v":""},"",null,{"$f":"IF(OR(F84=\"\",ISNUMBER(F84)),\"\",VLOOKUP(F84,'Product & Price List'!$D$17:$H$173,5,FALSE))","v":""},"",{"$f":"IF(OR(F84=\"\",ISNUMBER(F84)),\"\",VLOOKUP(F84,'Product & Price List'!$D$17:$H$171,3,FALSE))","v":""},null,null,0]
[null,"• vCenter Server Standard for vSphere 6 (Per Instance)","• Upgrade: Player 6 Plus to Player 7 Pro","• vCenter Operations Manager for View: 100 Concur. User pack",null,null,null,{"$f":"IF(OR(F85=\"\",ISNUMBER(F85)),\"\",VLOOKUP(F85,'Product & Price List'!$D$17:$H$173,2,FALSE))","v":""},null,null,{"$f":"IF(OR(F85=\"\",ISNUMBER(F85)),\"\",VLOOKUP(F85,'Product & Price List'!$D$18:$H$174,4,FALSE))","v":""},"",null,{"$f":"IF(OR(F85=\"\",ISNUMBER(F85)),\"\",VLOOKUP(F85,'Product & Price List'!$D$17:$H$173,5,FALSE))","v":""},"",{"$f":"IF(OR(F85=\"\",ISNUMBER(F85)),\"\",VLOOKUP(F85,'Product & Price List'!$D$17:$H$171,3,FALSE))","v":""},null,null,0]
[null,"• vCenter Site Recovery Manager Standard (25 VM pack)",null,null,null,"   *All products require that the license and maintenance be purchased from OARnet.  All support is provided at the Production Level.",null,null,null,null,null,null,null,null,null,"SUBTOTAL:",null,null,{"$f":"SUM(S76:S85)","v":0}]
[null,"• vCenter Site Recovery Manager Enterprise (25 VM pack)","••••••••••••  User Environment Manager •••••••••••• ","vCENTER SERVER"]
[null,null,null,"• vCenter Server Foundation (3 hosts)"]
[null,null,"USER ENVIRONMENT MANAGER","• vCenter Server Standard",null,"EXISTING LICENSE UPGRADES",null,null,null,"License Fees",null,null,"Maintenance Fees"]
[null,"vCLOUD","• Upgrade: User Environment Mgr to Horizon ENT ED: 10 Pack (CCU) *** User Environment Manager to Horizon Enterprise Edition: 10 Pack (CCU)",null,null,"Product",null,"Product Code",null,"Qty","License Fee","License Total","SnS Term","SnS Fee","SnS Total","SnS Code",null,null,"Total Cost"]
[null,"• vCloud Automation Center ADV (25 pack)","• Upgrade:  User Environment Mgr to Horizon ENT ED: 10 Pack (Named Users) *** User Environment Manager to Horizon Enterprise Edition: 10 Pack (Named Users)","vCENTER SITE RECOVERY",null,null,null,{"$f":"IF(OR(F91=\"\",ISNUMBER(F91)),\"\",VLOOKUP(F91,'Product & Price List'!$D$181:$H$395,2,FALSE))","v":""},null,null,{"$f":"IF(OR(F91=\"\",ISNUMBER(F91)),\"\",VLOOKUP(F91,'Product & Price List'!$D$181:$H$395,4,FALSE))","v":""},{"$f":"IF(OR(F91=\"\",ISNUMBER(F91)),\"\",J91*K91)","v":""},null,{"$f":"IF(OR(F91=\"\",ISNUMBER(F91)),\"\",VLOOKUP(F91,'Product & Price List'!$D$180:$H$395,5,FALSE))","v":""},{"$f":"IF(OR(F91=\"\",ISNUMBER(F91)),\"\",J91*M91*N91)","v":""},{"$f":"IF(OR(F91=\"\",ISNUMBER(F91)),\"\",VLOOKUP(F91,'Product & Price List'!$D$180:$H$395,3,FALSE))","v":""},null,null,{"$f":"IF(OR(F91=\"\",ISNUMBER(F91)),0,L91+O91)","v":0}]
[null,"• vCloud Automation Center Development Kit - per Instance","• Upgrade: User Environment Mgr to Horizon ENT ED: 100 Pack (CCU) *** User Environment Manager to Horizon Enterprise Edition: 100 Pack (CCU)","• vCenter Site Recovery Manager Standard (25 VM pack)",null,{"$f":"IF(NOT(H91=\"\"),\"*Prorated Maint Fee for Upgrade Must Be calculated by OARnet\",\"\")","v":""},null,null,null,null,null,null,null,null,{"$f":"IF(H91=\"\",\"\",N92)","v":""},null,null,null,{"$f":"IF(H91=\"\",\"\",N92)","v":""}]
[null,"• vCloud Suite Standard","• Upgrade: User Environment Mger to Horizon ENT ED: 100 Pack (Named Users) *** User Environment Manager to Horizon Enterprise Edition: 100 Pack (Named Users)","• vCenter Site Recovery Manager Enterprise (25 VM pack)",null,null,null,{"$f":"IF(OR(F93=\"\",ISNUMBER(F93)),\"\",VLOOKUP(F93,'Product & Price List'!$D$180:$H$395,2,FALSE))","v":""},null,null,{"$f":"IF(OR(F93=\"\",ISNUMBER(F93)),\"\",VLOOKUP(F93,'Product & Price List'!$D$181:$H$395,4,FALSE))","v":""},{"$f":"IF(OR(F93=\"\",ISNUMBER(F93)),\"\",J93*K93)","v":""},null,{"$f":"IF(OR(F93=\"\",ISNUMBER(F93)),\"\",VLOOKUP(F93,'Product & Price List'!$D$180:$H$395,5,FALSE))","v":""},{"$f":"IF(OR(F93=\"\",ISNUMBER(F93)),\"\",J93*M93*N93)","v":""},{"$f":"IF(OR(F93=\"\",ISNUMBER(F93)),\"\",VLOOKUP(F93,'Product & Price List'!$D$180:$H$395,3,FALSE))","v":""},null,null,{"$f":"IF(OR(F93=\"\",ISNUMBER(F93)),0,L93+O93)","v":0}]
[null,"• vCloud Suite Advanced","•••••••••••• vCENTER •••••••••••• ",null,null,{"$f":"IF(NOT(H93=\"\"),\"*Prorated Maint Fee for Upgrade Must Be calculated by OARnet\",\"\")","v":""},null,null,null,null,null,null,null,null,{"$f":"IF(H93=\"\",\"\",N94)","v":""},null,null,null,{"$f":"IF(H93=\"\",\"\",N94)","v":""}]
[null,"• vCloud Suite Enterprise","vCENTER ","vCLOUD",null,null,null,{"$f":"IF(OR(F95=\"\",ISNUMBER(F95)),\"\",VLOOKUP(F95,'Product & Price List'!$D$180:$H$395,2,FALSE))","v":""},null,null,{"$f":"IF(OR(F95=\"\",ISNUMBER(F95)),\"\",VLOOKUP(F95,'Product & Price List'!$D$181:$H$395,4,FALSE))","v":""},{"$f":"IF(OR(F95=\"\",ISNUMBER(F95)),\"\",J95*K95)","v":""},null,{"$f":"IF(OR(F95=\"\",ISNUMBER(F95)),\"\",VLOOKUP(F95,'Product & Price List'!$D$180:$H$395,5,FALSE))","v":""},{"$f":"IF(OR(F95=\"\",ISNUMBER(F95)),\"\",J95*M95*N95)","v":""},{"$f":"IF(OR(F95=\"\",ISNUMBER(F95)),\"\",VLOOKUP(F95,'Product & Price List'!$D$180:$H$395,3,FALSE))","v":""},null,null,{"$f":"IF(OR(F95=\"\",ISNUMBER(F95)),0,L95+O95)","v":0}]
[null,null,"• Upgrade: vCenter Server Foundation to Standard","• vCloud Automation Center ADV (25 pack)",null,{"$f":"IF(NOT(H95=\"\"),\"*Prorated Maint Fee for Upgrade Must Be calculated by OARnet\",\"\")","v":""},null,null,null,null,null,null,null,null,{"$f":"IF(H95=\"\",\"\",N96)","v":""},null,null,null,{"$f":"IF(H95=\"\",\"\",N96)","v":""}]
[null,"vFABRIC","• Upgrade: vCenter Site Recovery Manager - STD to ENT (25 VM Pack)","• vCloud Automation Center Enterprise (25 OSI pack)",null,null,null,{"$f":"IF(OR(F97=\"\",ISNUMBER(F97)),\"\",VLOOKUP(F97,'Product & Price List'!$D$180:$H$395,2,FALSE))","v":""},null,null,{"$f":"IF(OR(F97=\"\",ISNUMBER(F97)),\"\",VLOOKUP(F97,'Product & Price List'!$D$181:$H$395,4,FALSE))","v":""},{"$f":"IF(OR(F97=\"\",ISNUMBER(F97)),\"\",J97*K97)","v":""},null,{"$f":"IF(OR(F97=\"\",ISNUMBER(F97)),\"\",VLOOKUP(F97,'Product & Price List'!$D$180:$H$395,5,FALSE))","v":""},{"$f":"IF(OR(F97=\"\",ISNUMBER(F97)),\"\",J97*M97*N97)","v":""},{"$f":"IF(OR(F97=\"\",ISNUMBER(F97)),\"\",VLOOKUP(F97,'Product & Price List'!$D$180:$H$395,3,FALSE))","v":""},null,null,{"$f":"IF(OR(F97=\"\",ISNUMBER(F97)),0,L97+O97)","v":0}]
[null,"• vFabric Data Director 2.x License (25 VM pack)","•••••••••••• vCLOUD •••••••••••• ","• vCloud Automation Center for Desktop (25 pack)",null,{"$f":"IF(NOT(H97=\"\"),\"*Prorated Maint Fee for Upgrade Must Be calculated by OARnet\",\"\")","v":""},null,null,null,null,null,null,null,null,{"$f":"IF(H97=\"\",\"\",N98)","v":""},null,null,null,{"$f":"IF(H97=\"\",\"\",N98)","v":""}]
[null,null,"• Upgrade: vCloud Suite STD to vCloud Suite ENT","• vCloud Automation Center Development Kit - per Instance",null,null,null,{"$f":"IF(OR(F99=\"\",ISNUMBER(F99)),\"\",VLOOKUP(F99,'Product & Price List'!$D$180:$H$395,2,FALSE))","v":""},null,null,{"$f":"IF(OR(F99=\"\",ISNUMBER(F99)),\"\",VLOOKUP(F99,'Product & Price List'!$D$181:$H$395,4,FALSE))","v":""},{"$f":"IF(OR(F99=\"\",ISNUMBER(F99)),\"\",J99*K99)","v":""},null,{"$f":"IF(OR(F99=\"\",ISNUMBER(F99)),\"\",VLOOKUP(F99,'Product & Price List'!$D$180:$H$395,5,FALSE))","v":""},{"$f":"IF(OR(F99=\"\",ISNUMBER(F99)),\"\",J99*M99*N99)","v":""},{"$f":"IF(OR(F99=\"\",ISNUMBER(F99)),\"\",VLOOKUP(F99,'Product & Price List'!$D$180:$H$395,3,FALSE))","v":""},null,null,{"$f":"IF(OR(F99=\"\",ISNUMBER(F99)),0,L99+O99)","v":0}]
[null,"vREALIZE","• Upgrade: vCloud Suite ADV to vCloud Suite ENT","• vCloud Suite Standard",null,{"$f":"IF(NOT(H99=\"\"),\"*Prorated Maint Fee for Upgrade Must Be calculated by OARnet\",\"\")","v":""},null,null,null,null,null,null,null,null,{"$f":"IF(H99=\"\",\"\",N100)","v":""},null,null,null,{"$f":"IF(H99=\"\",\"\",N100)","v":""}]
[null,"• vRealize Automation ADV Public Cloud Extension (25 OSI pack)","• Upgrade: vCloud Suite STD to vCloud Suite ADV","• vCloud Suite Advanced",null,"  *The SnS (maintenance) prorated fee for upgrades must be calculated by OARnet.  Before you request a PO, contact your OARnet representative for total upgrade cost.",null,null,null,null,null,null,null,null,null,"SUBTOTAL:",null,null,{"$f":"SUM(S91:S100)","v":0}]
[null,"• vRealize Automation ENT Public Cloud Extension (25 OSI pack)","• Upgrade: vSphere STD to vCloud Suite STD","• vCloud Suite Enterprise"]
[null,"• vRealize Business Enterprise (Per CPU)","• Upgrade: vSphere ENT PLUS to vCloud Suite STD","vFABRIC"]
[null,"• vRealize Business Standard (25 OSI Pack)","• Upgrade: vSphere w/ Ops Mgt STD to vCloud Suite STD","• vFabric Data Director 2.x License (25 VM pack)"]
[null,"• vRealize Business Standard (Per CPU)","• Upgrade: vSphere w/ Ops Mgt ENT to vCloud Suite STD",null,null,"Professional Services Credits",null,"Product Code",null,"Qty","PSO Fee","PSO Total"]
[null,"• vRealize Code Stream (Per CPU)","• Upgrade: vSphere w/ Ops Mgt ENT PLUS to vCloud Suite STD","vREALIZE"]
[null,"• vRealize Code Stream (Per OSI)","• Upgrade: vSphere STD to vCloud Suite ADV","• vRealize Automation ADV Public Cloud Extension (25 OSI pack)",null,"PSO Credits",null,"SVC-20-CR80",null,null,84,{"$f":"J107*K107","v":0}]
[null,"• vRealize Hyperic Perpetual License (Per Machine)","• Upgrade: vSphere ENT to vCloud Suite ADV","• vRealize Automation ENT Public Cloud Extension (25 OSI pack)",null,null,"                                       Click here for a List of courses and professional service options."]
[null,"• vRealize Operations for Horizon: 100 Concurrent User Pack","• Upgrade: vSphere ENT Plus to vCloud Suite ADV","• vRealize Business Standard (25 OSI Pack)"]
[null,"• vRealize Operations Insight","• Upgrade: vSphere w/ Ops Mgt STD to vCloud Suite ADV","• vRealize Business Standard (Per CPU)",null,null,"I want to save these PSO credits for future use."]
[null,"• vRealize Operations Public Cloud Extension ADV (25 OSI Pack)","• Upgrade:  vSphere w/ Ops Mgt ENT to vCloud Suite ADV","• vRealize Business Advanced (Per CPU)"]
[null,"• vRealize Operations Public Cloud Extension ENT (25 OSI Pack)","• Upgrade: vSphere w/ Ops Mgt STD to vCloud Suite ENT","• vRealize Business Enterprise (Per CPU)",null,null,"I have selected a training course / consulting service to which the PSO credits will be applied.  (Please complete Attachment 2.)"]
[null,"• vRealize Suite Advanced (25 OSI Pack)","• Upgrade: vSphere w/ Ops Mgt ENT to vCloud Suite ENT","• vRealize Cloud Management Platform ADV (25 OSI pack)"]
[null,"• vRealize Suite Advanced (2 CPUs)","• Upgrade: vSphere w/ Ops Mgt ENT PLUS to vCloud Suite ENT","• vRealize Cloud Management Platform ENT (25 OSI pack)"]
[null,"• vRealize Suite Enterprise (25 OSI pack)","• Upgrade: vSphere w/ Ops Mgt ENT Plus to vCloud Suite ADV","• vRealize Code Stream (Per CPU)",null,"MAINTENANCE RENEWAL of EXISTING VMWARE LICENSES",null,null,null,null,null,null,null,null,null,"GRAND TOTAL:"]
[null,"• vRealize Suite Enterprise (2 CPUs)","• Upgrade: vSphere STD to vCloud Suite ENT","• vRealize Code Stream (Per OSI)",null,"Product",null,"Product Code",null,"Qty","SnS Term","SnS Fee","SnS Total",null,null,{"$f":"SUM(S86,L107,M127,S101)","v":0}]
[null,null,"• Upgrade: vSphere ENT to vCloud Suite ENT","• vRealize Hyperic Perpetual License (Per Machine)",null,null,null,{"$f":"IF(OR(F117=\"\",ISNUMBER(F117)),\"\",VLOOKUP(F117,'Product & Price List'!$D$402:$H$581,2,FALSE))","v":""},null,null,null,{"$f":"IF(OR(F117=\"\",ISNUMBER(F117)),\"\",VLOOKUP(F117,'Product & Price List'!$D$402:$H$582,3,FALSE))","v":""},{"$f":"IF(OR(F117=\"\",ISNUMBER(F117)),0,J117*K117*L117)","v":0}]
[null,"vREALIZE LOG INSIGHT","• Upgrade: vSphere ENT PLUS to vCloud Suite ENT","• vRealize Operations Insight",null,null,null,{"$f":"IF(OR(F118=\"\",ISNUMBER(F118)),\"\",VLOOKUP(F118,'Product & Price List'!$D$402:$H$581,2,FALSE))","v":""},null,null,null,{"$f":"IF(OR(F118=\"\",ISNUMBER(F118)),\"\",VLOOKUP(F118,'Product & Price List'!$D$402:$H$582,3,FALSE))","v":""},0,null,null,"Purchase Orders must be submitted with this order form. Vendor address on Purchase Order must be made out to OARnet’s address at OSU: \n1224 Kinnear Rd., Columbus, OH  43212\n\nCredit Card payment is accepted at time of order placement for a maximum of $10,000."]
[null,"• vRealize Log Insight (per CPU)",null,"• vRealize Operations for Horizon: 100 Concurrent User Pack",null,null,null,{"$f":"IF(OR(F119=\"\",ISNUMBER(F119)),\"\",VLOOKUP(F119,'Product & Price List'!$D$402:$H$581,2,FALSE))","v":""},null,null,null,{"$f":"IF(OR(F119=\"\",ISNUMBER(F119)),\"\",VLOOKUP(F119,'Product & Price List'!$D$402:$H$582,3,FALSE))","v":""},0]
[null,"• vRealize Log Insight (25 OSI pack)","•••••••••••• vREALIZE •••••••••••• ","• vRealize Operations Public Cloud Extension ADV (25 OSI Pack)",null,null,null,{"$f":"IF(OR(F120=\"\",ISNUMBER(F120)),\"\",VLOOKUP(F120,'Product & Price List'!$D$402:$H$581,2,FALSE))","v":""},null,null,null,{"$f":"IF(OR(F120=\"\",ISNUMBER(F120)),\"\",VLOOKUP(F120,'Product & Price List'!$D$402:$H$582,3,FALSE))","v":""},0]
[null,null,"vREALIZE BUSINESS","• vRealize Operations Public Cloud Extension ENT (25 OSI Pack)",null,null,null,{"$f":"IF(OR(F121=\"\",ISNUMBER(F121)),\"\",VLOOKUP(F121,'Product & Price List'!$D$402:$H$582,2,FALSE))","v":""},null,null,null,{"$f":"IF(OR(F121=\"\",ISNUMBER(F121)),\"\",VLOOKUP(F121,'Product & Price List'!$D$402:$H$582,3,FALSE))","v":""},0]
[null,"vSAN / STORAGE","• Upgrade: vRealize Business STD to ADV  (Per CPU)  ***Upgrade: vRealize Business Standard (Per CPU) tovRealize Business Advanced (Per CPU)","• vRealize Suite 6 Advanced (25 OSI Pack)",null,null,null,{"$f":"IF(OR(F122=\"\",ISNUMBER(F122)),\"\",VLOOKUP(F122,'Product & Price List'!$D$402:$H$582,2,FALSE))","v":""},null,null,null,{"$f":"IF(OR(F122=\"\",ISNUMBER(F122)),\"\",VLOOKUP(F122,'Product & Price List'!$D$402:$H$582,3,FALSE))","v":""},0,null,null," SUBMIT PO & ORDER FORM AS FOLLOWS:\n\nEMAIL:\n - The State of Ohio:\n                 vmware-stateofohio@oar.net\n -  Higher Education:     \n                  vmware-higher-education@oar.net\n -  K12:    \n                  vmware-k12@oar.net\nFax:     \n                 614-292-9390 \n\nMail:        1224 Kinnear Rd.\n                 Columbus, OH 43212"]
[null,null,null,null,null,null,null,{"$f":"IF(OR(F123=\"\",ISNUMBER(F123)),\"\",VLOOKUP(F123,'Product & Price List'!$D$402:$H$582,2,FALSE))","v":""},null,null,null,{"$f":"IF(OR(F123=\"\",ISNUMBER(F123)),\"\",VLOOKUP(F123,'Product & Price List'!$D$402:$H$582,3,FALSE))","v":""},{"$f":"IF(OR(F123=\"\",ISNUMBER(F123)),0,J123*K123*L123)","v":0}]
[null,null,null,null,null,null,null,{"$f":"IF(OR(F124=\"\",ISNUMBER(F124)),\"\",VLOOKUP(F124,'Product & Price List'!$D$402:$H$582,2,FALSE))","v":""},null,null,null,{"$f":"IF(OR(F124=\"\",ISNUMBER(F124)),\"\",VLOOKUP(F124,'Product & Price List'!$D$402:$H$582,3,FALSE))","v":""},0]
[null,null,null,null,null,null,null,null,null,null,null,{"$f":"IF(OR(F125=\"\",ISNUMBER(F125)),\"\",VLOOKUP(F125,'Product & Price List'!$D$402:$H$582,3,FALSE))","v":""},0]
[null,"• Virtual SAN for 1-Processor","• Upgrade: vRealize Business STD to ENT (Per CPU)  ***Upgrade:  vRealize Business Standard (Per CPU) to vRealize Business 8 Enterprise (Per CPU)",null,null,null,null,null,null,null,null,{"$f":"IF(OR(F126=\"\",ISNUMBER(F126)),\"\",VLOOKUP(F126,'Product & Price List'!$D$402:$H$582,3,FALSE))","v":""},0]
[null,"• Virtual SAN for Desktop 10-Pack (CCU)","• Upgrade: vC.OpsMgtSuiteSTD to vRealizeCloudMgtENT (25 OSI)  ***Upgrade: vCenter Operations 5.6 Management Suite Standard to vRealize Suite 6 Enterprise (25 OSI Pack)","• vSphere Enterprise Plus (per CPU)"]
[null,"• Virtual SAN for Desktop 100-Pack (CCU)","• Upgrade: vC.OpsMgtSuiteADV to vRealizeCloudMgtENT (25 OSI)  ***Upgrade: vCenter Operations 5.6 Management Suite Advanced to vRealize Suite 6 Enterprise (25 OSI Pack)","• vSphere Enterprise Plus w/ Cisco Nexus 1000V Bundle"]
[null,null,"• Upgrade: vC.OpsMgtSuiteENT to vRealizeCloudMgtENT (25 OSI)  ***Upgrade: vCenter Operations 5.6 Management Suite Enterprise to vRealize Suite 6 Enterprise (25 OSI Pack)","• vSphere w/ Operations Management STD (per CPU)"]
[null,"vSPHERE","• Upgrade: vC.LogInsight perOSI to vRealizeCloudMgtENT (25 OSI)  ***Upgrade: VMware vCenter Log Insight per OSI to vRealize Suite 6 Enterprise (25 OSI Pack)","• vSphere w/ Operations Management ENT (per CPU)"]
[null,"• vSphere Standard for 1 processor","• Upgrade: vCloudAutoCtrADVSuite to vRealizeCloudMgtENT (25 OSI) ***Upgrade: vCloud Automation Center 6 Advanced Suite to vRealize Suite 6 Enterprise (25 OSI Pack)","• vSphere w/ Operations Management ENT PLUS (per CPU)"]
[null,"• vSphere Enterprise for 1 processor","• Upgrade: vCloudAutoCtrENTSuite to vRealizeCloudMgtENT (25 OSI) ***Upgrade: vCloud Automation Center Enterprise Suite to vRealize Suite 6 Enterprise (25 OSI Pack)",null,null,null,"ATTACHMENT 2 - PSO Consumption"]
[null,"• vSphere Enterprise Plus for 1 processor",null,"vSPHERE KITS"]
[null,"• vSphere w/ Ops Mgt STD for 1 processor","vREALIZE OPERATIONS INSIGHT","• vSphere Essentials Plus Kit (3 hosts)",null,null,"VMWARE TRAINING & CONSULTING FORM"]
[null,null,"• Upgrade: vCenter Log Insight (CPU) to vRealize Ops Insight  ***Upgrade: vCenter Log Insight per CPU to vRealize Operations Insight ","• vSphere Essentials Kit - Retail & Branch Offices (10 CPUs)"]
[null,"vSPHERE KITS","• Upgrade: vCOM ADV Add-on (vSOM) to vRealize Ops Insight  ***Upgrade:  vCenter Operations 5.8.2 Mgmt Suite Advanced Add-On for vSOM to vRealize Operations Insight 6","• vSphere Essentials Plus Kit - Retail & Branch Offices (10 CPUs)"]
[null,"• vSphere Essentials Plus Kit for 3 hosts (Max 2 processors per host)",null,"• vSphere w/ Operations Mgmt STD Acceleration Kit",null,null,"ENTITY NAME:"]
[null,"• vSphere w/Ops Mgt STD ACCEL Kit 6 processors","vREALIZE PUBLIC CLOUD EXTENSION","• vSphere w/ Operations Mgmt ENT Acceleration Kit (6 proc.)"]
[null,"• vSphere w/ Ops Mgt ENT ACCEL Kit for 6 processors","• Upgrade: vRealize Auto Public Cloud Ext (25 OSI pack) ADV to ENT","• vSphere w/ Operations Mgmt ENT PLUS Acceleration Kit (6 proc.)"]
[null,"• vSphere w/ Ops Mgt ENT PLUS Acceleration Kit (6 proc.)","• Upgrade: vRealize Automation (25 OSI Pack) ADV to ENT\n***Upgrade: VMware VMware vRealize Automation Advanced (25 OSI Pack) to VMware vRealize Automation Enterprise (25 OSI Pack)"]
[null,null,"• Upgrade: vRealize Ops Public Cloud Extension ADV to ENT\n***Upgrade:  Realize Operations Public Cloud Extension Advanced (25 OSI Pack) to vRealize Operations Public Cloud Extension Enterprise (25 OSI Pack)","vSPHERE (OTHER)"]
[null,"vSPHERE (OTHER)","vREALIZE SUITE","• vSphere Data Protection Advanced (per processor)",null,null,"Course Title:"]
[null,"• vSphere Desktop (100 VM pack)","• Upgrade: IT Bus Mgt STE STD to vRealize STE ADV (25 OSI Pack) ***Upgrade: IT Business Management Suite 1 Standard to vRealize Suite Advanced (25 OSI Pack)","• vSphere Data Protection Advanced Add-on for vSOM Accel Kit Bundle",null,null,"Course SKU/Code:"]
[null,"• vSphere Remote Office Branch Office Standard (25 VM pack)","• Upgrade: vCenter Log Insight to vRealize STE ADV (25 OSI Pack)\n***Upgrade: vCenter Log Insight per OSI to vRealize Suite Advanced (25 OSI Pack)","• vSphere Desktop (100 VM pack)",null,null," Total PSOs Required:"]
[null,"• vSphere Remote Office Branch Office Advanced (25 VM pack)","• Upgrade: vCenter Ops Mgt STE ADV to vRealize STE ADV (25 OSI Pack) ***Upgrade:  vCenter Operations Mgt Suite Advanced to vRealize Suite Advanced (25 OSI Pack)","• vSphere Remote Office Branch Office Standard (25 VM pack)",null,null,"                                    Is the training a public course (open enrollment) or an on-site custom course? (Check one)"]
[null,null,"• Upgrade: vCenter Ops Mgt STE STD to vRealize STE ADV (25 OSI Pack) ***Upgrade:  vCenter Operations Mgt Suite Standard to vRealize Suite Advanced (25 OSI Pack)","• vSphere Remote Office Branch Office Advanced (25 VM pack)"]
[null,"WORKSPACE SUITE","• Upgrade: vCloud Auto Ctr ADV STE to vRealize STE ADV (25 OSI Pack) ***Upgrade: vCloud Automation Center Advanced Suite to vRealize Suite Advanced (25 OSI Pack)",null,null,null,"If a public course, Listt location (City, State):"]
[null,"• Workspace Suite On Premise, Perpetual: 10 Named Users","• Upgrade: vRealize BUS STD (25 OSI) to vRealize STE ADV (25 OSI Pack) ***Upgrade: vRealize Business Standard (25 OSI Pack) to vRealize Suite Advanced (25 OSI Pack)","WORKSPACE SUITE",null,null,"Training provider (VMware or reseller name):"]
[null,"• Workspace Suite On Premise, Perpetual: 100 Named Users","• Upgrade: vROPS ADV to vRealize Suite ADV (25 OSI Pack)  ***Upgrade: vRealize Operations Advanced (25 OSI Pack) to vRealize Suite Advanced (25 OSI PK)","• Workspace Suite On Premise, Perpetual: 10 Named Users",null,null,"Course Dates:"]
[null,null,"• Upgrade: vROPS STE STD to vRealize STE ADV (25 OSI Pack)","• Workspace Suite On Premise, Perpetual: 100 Named Users",null,null,null,"Number of Attendees:"]
[null,"WORKSTATION","• Upgrade: vRealize STE ADV to vRealize STE ENT (25 OSI Pack) "]
[null,"• Workstation - Windows/Linux , ESD (SnS is optional)",null,"WORKSTATION",null,null,null,"COURSE ATTENDEES"]
[null,"WORKSTATION","••••••••••••vSAN / STORAGE •••••••••••• ","• Workstation - Windows/Linux (SnS is optional)",null,null,"Name:"]
[null,"• Workstation - Windows/Linux (SnS is optional)","VIRTUAL SAN BUNDLE",null,null,null,"Email:"]
[null,null,"• Upgrade: vSphere Storage Appliance to Virtual SAN Bundle","• vSphere Remote Office Branch Office Advanced (25 VM pack)",null,null,"Phone:"]
[]
[null,null,"•••••••••••• vSPHERE •••••••••••• ","WORKSTATION",null,null,"Name:"]
[null,null,"vSPHERE ENTERPRISE","• Workstation - Windows/Linux (SnS is optional)",null,null,"Email:"]
[null,null,"• Upgrade: vSphere STD to ENT for 1 Processor",null,null,null,"Phone:"]
[null,null,"vSPHERE ENTERPRISE PLUS","DISCONTINUED PRODUCTS"]
[null,null,"• Upgrade: vSphere STD to ENT PLUS for 1 processor","• Horizon Mirage 10 Pack",null,null,"Name:"]
[null,null,"• Upgrade: vSphere ENT to ENT PLUS for 1 processor","• Horizon Mirage 100 Pack",null,null,"Email:"]
[null,null,"vSPHERE w/ OPS MGMT STANDARD","• Horizon View 5 Bundle: 10 Pack",null,null,"Phone:"]
[null,null,"• Upgrade: vSphere STD to vSphere w/ Ops Mgt STD for 1 Processor","• Horizon View 5 Bundle: 100 Pack"]
[null,null,"vSPHERE w/ OPS MGMT ENTERPRISE","• Horizon View 5 Add-On: 10 Pack"]
[null,null,"• Upgrade: vSphere STD to vSphere w/ Ops Mgt ENT for 1 Processor","• Horizon View 5 Add-On: 100 Pack"]
[null,null,"• Upgrade: vSphere ENT to vSphere w/ Ops Mgt ENT for 1 Processor","• Horizon Workspace 10 Pack"]
[null,null,"• Upgrade: vSphere w/ Ops Mgt STD to ENT for 1 Processor","• Horizon Workspace 100 Pack",null,null,"Service Name:"]
[null,null,"vSPHERE w/ OPS MGMT ENTERPRISE PLUS","• Mirage Bundle for 10 named Users",null,null,"Service SKU/Code:"]
[null,null,"• Upgrade: vSphere STD to vSphere w/ Ops Mgt ENT PLUS for 1 Processor","• ThinApp Client",null,null," Total PSOs Required:"]
[null,null,"• Upgrade: vSphere ENT to vSphere w/ Ops Mgt ENT PLUS for 1 Processor","• vCenter Server Heartbeat",null,null,"Consulting Date:"]
[null,null,"• Upgrade: vSphere ENT PL to vSphere w/ Ops Mgt ENT PLUS for 1 Processor","• vCenter Site Recovery Manager (per CPU)"]
[null,null,"• Upgrade: vSphere w/ Ops Mgt STD to ENT PLUS for 1 Processor","• vCloud Director (25 VM Pack)"]
[null,null,"• Upgrade: vSphere w/ Ops Mgt ENT to ENT PLUS for 1 Processor","• vCloud Networking and Security Standard (25 VM Pack) - EOSL 09/19/2016"]
[null,null,"vSPHERE w/ OPS MGMT STANDARD ACCELERATION KIT","• vCloud Networking and Security Advanced (25 VM Pack) - EOSL 09/19/2016",null,null,"      Click here for a current list of available training courses:"]
[null,null,"• Upgrade: vSphereEssent to vSphere w/OpsMgmt STD Accel Kit","• vSphere w/ Operations Mgmt Enterprise Acceleration Kit  - Soft Bundle "]
[null,null,"• Upgrade: vSphereEssentPlus to vSphere w/OpsMgmt STD Accel Kit","• vSphere w/ Operations Mgmt Enterprise Plus Acceleration Kit - Soft Bundle "]
[null,null,"vSPHERE w/ OPS MGMT ENTERPRISE ACCELERATION KIT"]
[null,null,"• Upgrade: vSphereEssent to vSphere w/OpsMgt ENT Accel Kit for 6 Processors"]
[null,null,"• Upgrade: vSphereEssentPlus to vSphere w/OpsMgt ENT Accel Kit for 6 Processors"]
[null,null,"vSPHERE w/ OPS MGMT ENTERPRISE PLUS ACCELERATION KIT"]
[null,null,"• Upgrade: vSphereEssent to vSphere w/OpsMgt ENTPL Accel Kit"]
[null,null,"• Upgrade: vSphereEssentPl to vSphere w/OpsMgtENTPL Accel Kit"]
[null,null,"vSPHERE ESSENTIALS PLUS"]
[null,null,"• Upgrade: vSphere Essentials to Essentials Plus Kit - for 3 hosts (Max 2 processors per host)"]
[null,null,"vSPHERE ESSENTIALS PLUS for RETAIL & BRANCH OFFICES"]
[null,null,"• Upgrade: vSphere Essentials to Essentials Plus Kit - for 3 hosts (Max 2 processors per host)"]
[null,null,"vSPHERE REMOTE/BRANCH OFFICE"]
[null,null,"• Upgrade: vSphereRemoteBranchOffice STD to ADV (25 VM Pack)"]
[]
[null,null,"•••••••••••• WORKSTATION •••••••••••• "]
[null,null,"WORKSTATION"]
[null,null,"• Upgrade: Workstation 11 Upgrade from Vers: 9.x/10.x/or Player 6 Plus for Linux/Windows, ESD  "]
[null,null,"• Upgrade: Workstation 11 Upgrade from Player Pro for Lin/Win,ESD  ***Upgrade:  Workstation 11 Upgrade from Player 7 Pro for Linux and Windows, ESD"]

{"sheet":"Product & Price List","index":1,"n_rows":581,"n_cols":12,"rows_kept":581,"cut":false,"hidden":false,"merged":[[177,3,177,7],[15,3,15,7],[398,3,398,5],[1,6,1,7],[2,6,2,7],[3,6,3,7],[5,6,5,7],[7,6,7,7],[9,6,9,7],[10,6,10,7],[11,6,11,7],[12,6,12,7]]}
[]
[null,null,null,"NEW PRODUCTS","Airwatch","ITBM","ThinApp",null,null,"vRealize","vSphere (Other)"]
[null,null,null,"GO TO (Product Name/Family):","APP Volume","Mirage","User Evironment Mgr",null,null,"vRealize Log Insight","Workspace Suite"]
[null,null,null,null,"Continuent","NSX / Nicira","vCenter ",null,null,"vSAN / Storage","Workstation"]
[null,null,null,null,"Fusion","Pivotal","vCloud",null,null,"vSphere "]
[null,null,null,null,"Horizon","Player","vFabric",null,null,"vSphere Kits"]
[]
[null,null,null,"UPGRADE PRODUCTS","Airwatch","NSX/NICIRA","vRealize",null,null,"MAINTENANCE RENEWAL",null,"   NOTES:"]
[null,null,null,null,"APP Volume","Pivotal","vSAN/Storage",null,null,"GO TO RENEWALS"]
[null,null,null,"GO TO (Product Name/Family):","Continuent","Player","vSphere",null,null,"(Existing OARnet licenses ONLY.)",null,"   All product support under this contract is at the VMware Production Level."]
[null,null,null,null,"Fusion","User Environment Mgr","Workstation",null,null,null,null,"   All products require the license and maintenance to be purchased from OARnet."]
[null,null,null,null,"Horizon","vCenter"]
[null,null,null,null,"ITBM","vCloud"]
[]
[]
[null,null,null,"New VMware Products & Pricing (and Maintenance)"]
[null,null,null,"Product","Product Code","SnS Code","License Fee","1 yr SnS Fee"]
[]
[null,null,null,"AIRWATCH"]
[null,null,null,"• AirWatch by VMware Secure Content Locker Collaborate","V-MCC-PL-ANY-DEV-C","V-MCC-MF-ANY-DEV-C",18.5,6.5,null,"NOTE:  Minimum initial purchase quantity of 25."]
[null,null,null,"• AirWatch by VMware Mgt Suite for Laptops","V-MS-PL-DEV-LT-C","V-MS-MF-DEV-LT-C",18.5,6.5,null,"NOTE:  Minimum initial purchase quantity of 25."]
[null,null,null,"• AirWatch by VMware Mgt Suite for Rugged Devices","V-MS-PL-DEV-RG-C","V-MS-MF-DEV-RG-C",18.5,6.5,null,"NOTE:  Minimum initial purchase quantity of 25."]
[null,null,null,"• AirWatch by VMware Green Mgt Suite","V-GMS-PL-DEV-C","V-GMS-MF-DEV-C",18.5,6.5,null,"NOTE:  Minimum initial purchase quantity of 25."]
[null,null,null,"• AirWatch by VMware Orange Mgt Suite","V-OMS-PL-DEV-C","V-OMS-MF-DEV-C",25.9,8.4499999999999993,null,"NOTE:  Minimum initial purchase quantity of 25."]
[null,null,null,"• AirWatch by VMware Blue Mgt Suite Perpetual, One Time Fee / Device","V-BMS-PL-DV2-C"," BMS15-PL-DEV",33.299999999999997,11.05,null,"NOTE:  Minimum initial purchase quantity of 25."]
[null,null,null,"• AirWatch by VMware Yellow Mgt Suite - Perpetual, One Time Fee / Device","V-YMS-PL-DV2-C","YMS15-PL-DEV",48.1,16.25,null,"NOTE:  Minimum initial purchase quantity of 25."]
[]
[null,null,null,"APP VOLUME"]
[null,"NEW",null,"• App Volumes 10 Pack (CCU)","CV-CCU-10-C","CV-CCU-10-P-SSS-C",555,185.25]
[null,"NEW",null,"• App Volumes 100 Pack (CCU)","CV-CCU-100-C","CV-CCU-100-P-SSS-C",5550,1852.5]
[]
[null,null,null,"CONTINUENT"]
[null,"NEW",null,"• Continuent for Analytics & Big Data - Per Cluster License","CN-ABD-C","CN-ABD-P-SSS-C",33300,11115]
[null,"NEW",null,"• Continuent for Clustering - Per Database Server License","CN-CP-C","CN-CP-P-SSS-C",11100,3705]
[null,"NEW",null,"• Continuent for Disaster Recovery - Per Database Server License","CN-DR-C","CN-DR-P-SSS-C",5550,1852.5]
[null,"NEW",null,"• Continuent for Replication - Per Database Server License","CN-RP-C","CN-RP-P-SSS-C",11100,3705]
[]
[null,null,null,"FUSION"]
[null,null,null,"• Fusion Professional Edition, ESD  (SnS is optional)","FUS7-PRO-C","FUS-PRO-P-SSS-C",48.1,16.25]
[]
[null,null,null,"HORIZON"]
[null,null,null,"• Horizon Advanced Edition (10 pack) (CCU)","HZ-ADVC-10-C","HZ-ADVC-10-P-SSS-C",1480,494]
[null,null,null,"• Horizon Advanced Edition (100 pack) (CCU)","HZ-ADVC-100-C","HZ-ADVC-100-P-SSS-C",14800,4940]
[null,null,null,"• Horizon Advanced Edition (10 pack) (Named Users)","HZ-ADVN-10-C","HZ-ADVN-10-P-SSS-C",925,308.75]
[null,null,null,"• Horizon Advanced Edition (100 pack) (Named Users)","HZ-ADVN-100-C","HZ-ADVN-100-P-SSS-C",9250,3087.5]
[null,null,null,"• Horizon Application Mgt Bundle: 10 Pack (CCU)","HZ-APMC-10-C","HZ-APMC-10-P-SSS-C",666,222.3]
[null,null,null,"• Horizon Application Mgt Bundle: 100 Pack (CCU)","HZ-APMC-100-C","HZ-APMC-100-P-SSS-C",6660,2223]
[null,null,null,"• Horizon DaaS On Premise Platform: 100-pack","HZ-DS-100-C","HZ-DS-100-P-SSS-C",10175,3396.25]
[null,null,null,"• Horizon FLEX 10 pack (Per Device)","HZ-FLX-10-C","HZ-FLX-10-P-SSS-C",925,308.75]
[null,"NEW",null,"• Horizon Enterprise Edition (10 pack) (CCU)","HZ-ENTC-10-C","HZ-ENTC-10-P-SSS-C",1850,617.5]
[null,"NEW",null,"• Horizon Enterprise Edition (100 pack) (CCU)","HZ-ENTC-100-C","HZ-ENTC-100-P-SSS-C",18500,6175]
[null,null,null,"• Horizon Enterprise Edition (10 pack) (Named Users)","HZ-ENTN-10-C","HZ-ENTN-10-P-SSS-C",1110,370.5]
[null,"NEW",null,"• Horizon Enterprise Edition (100 pack) (Named Users)","HZ-ENTN-100-C","HZ-ENTN-100-P-SSS-C",11100,3705]
[null,null,null,"• Horizon View Standard Add-On: 10 pack (CCU)","HZ-STD-A10-C","HZ-STD-A10-P-SSS-C",703,234.65]
[null,null,null,"• Horizon View Standard Add-On: 100 pack (CCU)","HZ-STD-A100-C","HZ-STD-A100-P-SSS-C",7030,2346.5]
[null,null,null,"• Horizon View Standard Edition (10 pack) (CCU)","HZ-STD-10-C","HZ-STD-10-P-SSS-C",925,308.75]
[null,null,null,"• Horizon View Standard Edition (100 pack) (CCU)","HZ-STD-100-C","HZ-STD-100-P-SSS-C",9250,3087.5]
[null,null,null,"• Horizon Workspace Portal: 10 pack","WSP-10-C","WSP-10-P-SSS-C",185,61.75]
[null,null,null,"• Horizon Workspace Portal: 100 pack","WSP-100-C","WSP-100-P-SSS-C",1850,617.5]
[]
[null,null,null,"IT BUSINESS MANAGEMENT (ITBM)"]
[null,null,null,"• IT Business Mgt Foundation package","DF-ITBM-FND-C","DF-ITBM-FND-P-SSS-C",166500,55575]
[null,null,null,"• IT Business Mgt Additional User","DF-ITBM-ADD-C","DF-ITBM-P-SSS-C",27750,9262.5]
[null,null,null,"• IT Business Mgt Read-Only","DF-ITBM5-C","DF-ITBM5-P-SSS-C",8325,2778.75]
[null,null,null,"• IT Financial Mgt Foundation package","DF-ITFM-FND-C","DF-ITFM-FND-P-SSS-C",111000,37050]
[null,null,null,"• IT Financial Mgt Additional User","DF-ITFM-ADD-C","DF-ITFM-ADD-P-SSS-C",22200,7410]
[null,null,null,"• IT Financial Mgt Read-Only","DF-ITFM5-C","DF-ITFM5-P-SSS-C",8325,2778.75]
[null,"NEW",null,"• vRealize Business Advanced Additional User - perpetual license for 5 users","BM-ADV-AD-C","BM-ADV-AD-PSUP-C",22200,7410]
[null,"NEW",null,"• vRealize Business Advanced Foundation Package - perpetual license for 5 users","BM-ADV-FND-C","BM-ADV-FND-PSUP-C",111000,37050]
[null,"NEW",null,"• vRealize Business Advanced Read-Only Perpetual License for 5 users","BM-ADV-RO-C","BM-ADV-RO-PSUP-C",8325,12.35]
[null,"NEW",null,"• vRealize Business Enterprise Additional User - perpetual license for 5 users","BM-ENT-AD-C","BM-ENT-AD-PSUP-C",27750,9262.5]
[null,"NEW",null,"• vRealize Business Enterprise Foundation Package - perpetual license for 10 users","BM-ENT-FND-C","BM-ENT-FND-PSUP-C",61050,20377.5]
[null,"NEW",null,"•  vRealize Business Enterprise Read-Only Perpetual License for 5 users","BM-ENT-RO-C","BM-ENT-RO-PSUP-C",8325,12.35]
[]
[null,null,null,"MIRAGE"]
[null,"NEW",null,"• Mirage for Physical: 10 Pack","MGP-10-C","MGP-10-P-SSS-C",555,185.25]
[null,"NEW",null,"• Mirage for Physical: 100 Pack","MGP-100-C","MGP-100-P-SSS-C",5550,1852.5]
[]
[null,null,null,"NSX / NICIRA"]
[null,"NEW",null,"• NSX for Multi-Hypervisor per Processor","NX-MHV-C","NX-MHV-3P-SSS-C",2588.15,863.85]
[null,null,null,"• NSX vSphere  ","NX-VS-C","NX-VS-P-SSS-C",2218.15,740.35]
[null,null,null,"• NSX vSphere - vCloud Suite Add-on","NX-CLAD-C","NX-CLAD-P-SSS-C",1293.1500000000001,431.6]
[]
[null,null,null,"PIVOTAL"]
[null,"NEW",null,"• Pivotal App Suite v2 Perpetual License (1 core)","PV-APP-STE-C","PV-APP-STE-P-SSS-C",333,111.15]
[null,"NEW",null,"• Pivotal GemFire XD (Per Core)","PV-GFXD-CPU-C","PV-GFXD-CPU-P-SSS-C",925,308.75]
[]
[null,null,null,"PLAYER"]
[null,"NEW",null,"• Player Pro","PLAY7-PRO-C","PLAY7-PRO-P-SSS-C",55.5,18.200000000000003]
[]
[null,null,null,"THINAPP"]
[null,null,null,"• ThinApp Suite","THIN5-STE-C","THIN5-STE-P-SSS-C",1850,617.5]
[null,null,null,"• ThinApp Client (100 pack)","THIN5-100PK-C","THIN5-100PK-P-SSS-C",703,234.65]
[]
[null,null,null,"USER ENVIRONMENT MANAGER"]
[null,"NEW",null,"• User Environment Manager: 10 Pack (CCU)","UEM-CCU-10-C","UEM-CCU-10-P-SSS-C",185,61.75]
[null,"NEW",null,"• User Environment Manager: 10 Pack (Named Users)","UEM-NU-10-C","UEM-NU-10-P-SSS-C",111,37.049999999999997]
[null,"NEW",null,"• User Environment Manager: 100 Pack (CCU)","UEM-CCU-100-C","UEM-CCU-100-P-SSS-C",1850,617.5]
[null,"NEW",null,"• User Environment Manager: 100 Pack (Named Users)","UEM-NU-100-C","UEM-NU-100-P-SSS-C",1110,370.5]
[]
[null,null,null,"vCENTER "]
[null,null,null,"• vCenter Configuration Manager Workstation - Linux/Windows","VC-CMW-C","VC-CMW-P-SSS-C",14.8,5.2]
[null,null,null,"• vCenter Operations Mgt pack for EPIC","VC-EPIC-C","VC-EPIC-P-SSS-C",22200,7410]
[null,null,null,"• vCenter Server Foundation for vSphere up to 3 hosts (Per Instance)","VCS6-FND-C","VCS6-FND-P-SSS-C",553.15,184.6,null,"NOTE:  For 3 hosts.  Max 2 processors per host."]
[null,null,null,"• vCenter Server Standard for vSphere 6 (Per Instance)","VCS6-STD-C","VCS6-STD-P-SSS-C",1835.66,811.85]
[null,null,null,"• vCenter Site Recovery Manager Standard (25 VM pack)","VC-SRM6-25S-C","VC-SRM6-25S-P-SSS-C",1803.75,601.9]
[null,null,null,"• vCenter Site Recovery Manager Enterprise (25 VM pack)","VC-SRM6-25E-C","VC-SRM6-25E-P-SSS-C",4578.75,1528.15]
[]
[]
[null,null,null,"vCLOUD"]
[null,null,null,"• vCloud Automation Center ADV (25 pack)","CA6-ADV25-C","CA6-ADV25-C -P-SSS-C",3700,1235,null,"NOTE:  Minimum initial purchase quantity of 4 (100 managed systems)."]
[null,null,null,"• vCloud Automation Center Development Kit - per Instance","CA6-DEVK-C","CA6-DEVK-P-SSS-C",7400,2470]
[null,null,null,"• vCloud Suite Standard","CL6-STD-C","CL6-STD-P-SSS-C",1848.15,616.85]
[null,null,null,"• vCloud Suite Advanced","CL6-ADV-C","CL6-ADV-P-SSS-C",2773.15,925.6]
[null,null,null,"• vCloud Suite Enterprise","CL6-ENT-C","CL6-ENT-P-SSS-C",4253.1499999999996,1419.6000000000001]
[]
[null,null,null,"vFABRIC"]
[null,null,null,"• vFabric Data Director 2.x License (25 VM pack)","VF-DD2-25VM-C","VF-DD2-25VM-P-SSS-C",6937.5,2315.9500000000003]
[]
[null,null,null,"vREALIZE"]
[null,null,null,"• vRealize Automation ADV Public Cloud Extension (25 OSI pack)","VR-AT-ADV25-C","VR-AT-ADV25-P-SSS-C",1850,617.5]
[null,null,null,"• vRealize Automation ENT Public Cloud Extension (25 OSI pack)","VR-AT-ENT25-C","VR-AT-ENT25-P-SSS-C",3653.75,1219.4000000000001]
[null,"NEW",null,"• vRealize Business Advanced (Per CPU)","VR6-BADV-C","VR6-BADV-P-SSS-C",832.5,278.2]
[null,"NEW",null,"• vRealize Business Enterprise (Per CPU)","VR6-BENT-C","VR6-BENT-P-SSS-C",1248.75,416.65000000000003]
[null,"NEW",null,"• vRealize Business Standard (25 OSI Pack)","VR6-BSTD25-C","VR6-BSTD25-P-SSS-C",1850,617.5]
[null,"NEW",null,"• vRealize Business Standard (Per CPU)","VR6-BSTD-C","VR6-BSTD-P-SSS-C",555,185.25]
[null,"NEW",null,"• vRealize Code Stream (Per CPU)","VR-CODE-CPU-C","VR-CODE-CPU-P-SSS-C",2775,926.25]
[null,"NEW",null,"• vRealize Code Stream (Per OSI)","VR-CODE-OSI-C","VR-CODE-OSI-P-SSS-C",462.5,154.70000000000002]
[null,"NEW",null,"• vRealize Hyperic Perpetual License (Per Machine)","VF-HYPM5-C","VF-HYPM5-P-SSS-C",133.19999999999999,44.2]
[null,"NEW",null,"• vRealize Operations for Horizon: 100 Concurrent User Pack","VR6-VU100-C","VR6-VU100-P-SSS-C",2775,926.25]
[null,null,null,"• vRealize Operations Insight","VR-OIST-BUN-C","VR-OIST-BUN-P-SSS-C",740,247]
[null,"NEW",null,"• vRealize Operations Public Cloud Extension ADV (25 OSI Pack)","VR6-PCADV25-C","VR6-PCADV25-P-SSS-C",1850,617.5]
[null,"NEW",null,"• vRealize Operations Public Cloud Extension ENT (25 OSI Pack)","VR6-PCENT25-C","VR6-PCENT25-P-SSS-C",3653.75,1219.4000000000001]
[null,"NEW",null,"• vRealize Suite Advanced (25 OSI Pack)","VR-STE-ADV-C","VR-STE-ADV-P-SSS-C",6243.75,2083.9]
[null,"NEW",null,"• vRealize Suite Advanced (2 CPUs)","VR-2CPU-ADV-C","VR-2CPU-ADV-P-SSS-C",4255,1420.25]
[null,"NEW",null,"• vRealize Suite Enterprise (25 OSI pack)","VR-CMP-ENT-C","VR-CMP-ENT-P-SSS-C",9203.75,3071.9]
[null,"NEW",null,"• vRealize Suite Enterprise (2 CPUs)","VR-2CPU-ENT-C","VR-2CPU-ENT-P-SSS-C",7363,2457.65]
[]
[null,null,null,"vREALIZE LOG INSIGHT"]
[null,null,null,"• vRealize Log Insight (per CPU)","VC-LIS-CPU-C","VC-LIS-CPU-P-SSS-C",555,185.25]
[null,null,null,"• vRealize Log Insight (25 OSI pack)","VC-LIS-25-C","VC-LIS-25-P-SSS-C",1850,617.5]
[]
[null,null,null,"vSAN / STORAGE"]
[null,null,null,"• Virtual SAN for 1-Processor","ST6-VSAN-C","ST6-VSAN-P-SSS-C",923.15,308.10000000000002]
[null,"NEW",null,"• Virtual SAN All Flash for Desktop Add-On 10 Pack (CCU)","ST6-VF-A10-C","ST6-VF-A10-P-SSS-C",111,37.049999999999997]
[null,"NEW",null,"• Virtual SAN All Flash for Desktop Add-On 100 Pack (CCU)","ST6-VF-A100-C","ST6-VF-A100-P-SSS-C",1110,370.5]
[null,"NEW",null,"• Virtual SAN All Flash Add-on for 1 processor","ST6-VF-AD-C","ST6-VF-AD-P-SSS-C",553.15,184.6]
[null,null,null,"• Virtual SAN for Desktop 10-Pack (CCU)","ST6-VSDT10-C","ST6-VSDT10-P-SSS-C",185,61.75]
[null,null,null,"• Virtual SAN for Desktop 100-Pack (CCU)","ST6-VSDT100-C","ST6-VSDT100-P-SSS-C",1850,617.5]
[]
[null,null,null,"vSPHERE"]
[null,null,null,"• vSphere Standard for 1 processor","VS6-STD-C","VS6-STD-P-SSS-C",368.15,122.85000000000001]
[null,null,null,"• vSphere Enterprise for 1 processor","VS6-ENT-C","VS6-ENT-P-SSS-C",1056.56,467.35]
[null,null,null,"• vSphere Enterprise Plus for 1 processor","VS6-EPL-C","VS6-EPL-P-SSS-C",1284.4100000000001,568.1]
[null,null,null,"• vSphere w/ Ops Mgt STD for 1 processor","VS6-OSTD-C","VS6-OSTD-P-SSS-C",645.65,215.8]
[]
[null,null,null,"vSPHERE KITS"]
[null,null,null,"• vSphere Essentials Plus Kit for 3 hosts (Max 2 processors per host)","VS6-ESP-KIT-C","VS6-ESP-KIT-P-SSS-C",1663.15,555.09999999999991,null,"NOTE:  Max 3 hosts, 2 processors per host."]
[null,null,null,"• vSphere w/Ops Mgt STD ACCEL Kit 6 processors","VS6-OSTD-AK-C","VS6-OSTD-AK-P-SSS-C",3698.15,1234.3499999999999]
[null,null,null,"• vSphere w/ Ops Mgt ENT ACCEL Kit for 6 processors","VS6-OENT-AK-C","VS6-OENT-AK-P-SSS-C",7213.15,2407.6]
[null,null,null,"• vSphere w/ Ops Mgt ENT PLUS Acceleration Kit (6 proc.)","VS6-OEPL-AK-C","VS6-OEPL-AK-P-SSS-C",8693.15,2901.6]
[]
[null,null,null,"vSPHERE (OTHER)"]
[null,null,null,"• vSphere Desktop (100 VM pack)","VS6-DT100VM-C","VS6-DT100VM-P-SSS-C",2405,802.75]
[null,null,null,"• vSphere Remote Office Branch Office Standard (25 VM pack)","VS6-RBSTD25-C","VS6-RBSTD25-P-SSS-C",1110,370.5]
[null,null,null,"• vSphere Remote Office Branch Office Advanced (25 VM pack)","VS6-RBADV25-C","VS6-RBADV25-P-SSS-C",1665,555.75]
[]
[null,null,null,"WORKSPACE SUITE"]
[null,"NEW",null,"• Workspace Suite On Premise, Perpetual: 10 Named Users","WSP-STE-10-C","WSP-STE-10-P-SSS-C",1813,605.15]
[null,"NEW",null,"• Workspace Suite On Premise, Perpetual: 100 Named Users","WSP-STE-100-C","WSP-STE-100-P-SSS-C",18130,6051.5]
[]
[null,null,null,"WORKSTATION"]
[null,null,null,"• Workstation - Windows/Linux , ESD (SnS is optional)","WS11-LW-CE","WS-P-SSS-C",92.13000000000001,30.55]
[]
[]
[]
[]
[null,null,null,"UPGRADE Products & Pricing (and Maintenance)"]
[null,null,null,"Product","Product Code","SnS Code","License Fee","1 yr SnS Fee"]
[]
[null,null,null,"••••••••••••  AIRWATCH •••••••••••• "]
[]
[null,null,null,"AIRWATCH SERCURE CONTENT LOCKER COLLABORATE"]
[null,null,null,"• Upgrade: AirWatchSecContentLockView to S.C.L. Collaborate","V-UPG-MCV-PL-MCC-C","V-UPG-MCV-MF-MCC-C",12.21,6.5]
[]
[null,null,null,"AIRWATCH ORANGE MGMT SUITE"]
[null,null,null,"• Upgrade: AirWatch Green Mgmt Suite to Orange Mgmt Suite","V-UPG-GMS-PL-OMS-C","V-UPG-GMS-MF-OMS-C",8.14,8.4499999999999993]
[]
[null,null,null,"AIRWATCH BLUE MGMT SUITE"]
[null,null,null,"• Upgrade: AirWatch Green Mgt STE to Blue Mgt STE - Perpetual, 1XFee/Device","V-UPG-GM2-PL-BMS-C","UPG15-GMS-PL-BMS",16.28,11.05]
[null,null,null,"• Upgrade: AirWatch Orange Mgt STE to Blue Mgt STE - Perpetual, 1XFee/Device","V-UPG-OM2-PL-BMS-C","UPG15-OMS-PL-BMS",8.14,11.05]
[]
[null,null,null,"AIRWATCH YELLOW MGMT SUITE"]
[null,null,null,"• Upgrade: AirWatchMobileDev&ContentLockerView to Yellow Mgt STE - Perpl, 1X Fee/Dev  ***Upgrade from Mobile Device Mgt & AirWatch Content Locker View to Yellow Mgt Suite - Perpetual, One Time Fee / Device","V-UPG-MDCV2-PYM-C","UPG15-MDMMCV-PL-YMS",24.42,16.25]
[null,null,null,"• Upgrade:  AirWatch Green Mgt STE to Yellow Mgt STE - Perpetual, 1XFee/Device","V-UPG-GM2-PL-YMS-C","UPG15-GMS-PL-YMS",32.56,16.25]
[null,null,null,"• Upgrade: AirWatch Orange Mgt STE to Yellow Mgt STE - Perpetual, 1X ee/Device","V-UPG-OM2-PL-YMS-C","UPG15-OMS-PL-YMS",24.42,16.25]
[null,null,null,"• Upgrade: AirWatch Blue Mgt STE to Yellow Mgt STE - Perpetual, 1XFee/Device","V-UPG-BM2-PL-YMS-C","UPG15-BMS-PL-YMS",16.28,16.25]
[]
[null,null,null,"••••••••••••  APP VOLUME •••••••••••• "]
[]
[null,null,null,"••••••••••••  CONTINUENT •••••••••••• "]
[]
[null,null,null,"••••••••••••  FUSION •••••••••••• "]
[]
[null,null,null,"FUSION"]
[null,null,null,"• Upgrade: Fusion to Fusion Professional Edition, ESD","FUS7-PRO-UG-C","FUS-PRO-P-SSS-C",25.9,16.25]
[]
[null,null,null,"•••••••••••• HORIZON •••••••••••• "]
[]
[null,null,null,"HORIZON VIEW STANDARD ADD-ON"]
[null,null,null,"• Upgrade: ThinAppClient to Horizon View STD Add-On (10pack)","HZ-CL-STDA10-UG-C","HZ-STD-A10-P-SSS-C",629,234.65]
[null,null,null,"• Upgrade: HorizonViewENT Add-on to ViewSTDAdd-On (10pack)","HZ-ENTA-STDA10-UG-C","HZ-STD-A10-P-SSS-C",370,234.65]
[null,null,null,"• Upgrade: HorizonViewENT Add-on to ViewSTDAdd-On (100pack)","HZ-ENTA-STDA100-UG-C","HZ-STD-A100-P-SSS-C",3700,2346.5]
[]
[null,null,null,"HORIZON ADVANCED (NAMED USERS)"]
[null,null,null,"• Upgrade: Workspace to HorizonADV (10pk)(Named Users)","HZ-WSP-ADVN-10-UG-C","HZ-ADVN-10-P-SSS-C",407,308.75]
[null,null,null,"• Upgrade: HorizonMirage to HorizonADV (10pk)(Named Users)","HZ-MRG-ADVN-10-UG-C","HZ-ADVN-10-P-SSS-C",407,308.75]
[null,"NEW",null,"• Upgrade: MiragePhysical to HorizonADV (10pk)(Named Users)","HZ-MGP-ADVN-10-UG-C","HZ-ADVN-10-P-SSS-C",407,308.75]
[null,null,null,"• Upgrade: Workspace to HorizonADV (100pk)(Named Users)","HZ-WSP-ADVN-100-UG-C","HZ-ADVN-100-P-SSS-C",4070,3087.5]
[null,null,null,"• Upgrade: HorizonMirage to HorizonADV (100pk)(Named Users)","HZ-MRG-ADVN-100-UG-C","HZ-ADVN-100-P-SSS-C",4070,3087.5]
[null,"NEW",null,"• Upgrade: MiragePhysical to HorizonADV (100pk)(Named Users)","HZ-MGP-ADVN-100-UG-C","HZ-ADVN-100-P-SSS-C",4070,3087.5]
[]
[null,null,null,"HORIZON ADVANCED (CONCURRENT USERS)"]
[null,null,null,"• Upgrade: Horizon Mirage to Horizon ADV (10 pack) (CCU)","HZ-MG5-ADVC-10-UG-C","HZ-ADVC-10-P-SSS-C",1017.5,494]
[null,"NEW",null,"• Upgrade: MiragePhysical to Horizon ADV (10 Pack) (CCU)","HZ-MGP-ADVC-10-UG-C","HZ-ADVC-10-P-SSS-C",1017.5,494]
[null,null,null,"• Upgrade: Horizon View Add-on to Horizon ADV (10 pack) (CCU)","HZ-VAD-ADVC-10-UG-C","HZ-ADVC-10-P-SSS-C",851,494]
[null,null,null,"• Upgrade: Horizon View STD to ADV (10 pack) (CCU)","HZ-VU-ADVC-10-UG-C","HZ-ADVC-10-P-SSS-C",610.5,494]
[null,null,null,"• Upgrade: Horizon Mirage to Horizon ADV (100 pack) (CCU)","HZ-MG5-ADVC-100-UG-C","HZ-ADVC-100-P-SSS-C",10175,4940]
[null,"NEW",null,"• Upgrade: MiragePhysical to Horizon ADV (100 Pack) (CCU)","HZ-MGP-ADVC-100-UG-C","HZ-ADVC-100-P-SSS-C",10175,4940]
[null,null,null,"• Upgrade: Horizon View Add-on to Horizon ADV (100 pack) (CCU)","HZ-VAD-ADVC-100-UG-C","HZ-ADVC-100-P-SSS-C",8510,4940]
[null,null,null,"• Upgrade: Horizon View STD to ADV (100 pack) (CCU)","HZ-VU-ADVC-100-UG-C","HZ-ADVC-100-P-SSS-C",6105,4940]
[]
[null,null,null,"HORIZON ENTERPRISE (NAMED USERS)"]
[null,null,null,"• Upgrade: Horizon ADV to ENT (10 pack) (Named Users)","HZ-ADVN-ENTN-10-UG-C","HZ-ENTN-10-P-SSS-C",203.5,370.5]
[null,null,null,"• Upgrade: Horizon ADV to ENT (100 pack) (Named Users)","HZ-ADV-ENTN-100-UG-C","HZ-ENTN-100-P-SSS-C",2035,3705]
[]
[null,null,null,"HORIZON ENTERPRISE (CONCURRENT USERS)"]
[null,"NEW",null,"• Upgrade: App Volumes to Horizon ENT (10 Pack) (CCU)","HZ-APV-ENTC-10-UG-C","HZ-ENTC-10-P-SSS-C",1424.5,617.5]
[null,null,null,"• Upgrade: Horizon View Add-on to Horizon ENT (10 pack) (CCU)","HZ-VAD-ENTC-10-UG-C","HZ-ENTC-10-P-SSS-C",1258,617.5]
[null,null,null,"• Upgrade: Horizon View STD to ENT (10 pack) (CCU)","HZ-VU-ENTC-10-UG-C","HZ-ENTC-10-P-SSS-C",1017.5,617.5]
[null,null,null,"• Upgrade: Horizon ADV to ENT (10 pack) (CCU)","HZ-ADVC-ENTC-10-UG-C","HZ-ENTC-10-P-SSS-C",407,617.5]
[null,"NEW",null,"• Upgrade: App Volumes to Horizon ENT (100 Pack) (CCU)","HZ-APV-ENTC-100-UG-C","HZ-ENTC-100-P-SSS-C",14245,6175]
[null,null,null,"• Upgrade: Horizon View Add-on to Horizon ENT (100 pack) (CCU)","HZ-VAD-ENTC-100-UG-C","HZ-ENTC-100-P-SSS-C",12580,6175]
[null,null,null,"• Upgrade: Horizon View STD to ENT (100 pack) (CCU)","HZ-VU-ENTC-100-UG-C","HZ-ENTC-100-P-SSS-C",10175,6175]
[null,null,null,"• Upgrade: Horizon ADV to ENT (100 pack) (CCU)","HZ-ADV-ENTC-100-UG-C","HZ-ENTC-100-P-SSS-C",4070,6175]
[]
[null,null,null,"HORIZON FLEX"]
[null,"NEW",null,"• Upgrade: Fusion 5 or 6 Pro to Horizon FLEX per Device","HZ-FUS56-FLX-UG-C","HZ-FLX-1-P-SSS-C",66.599999999999994,308.75]
[null,"NEW",null,"• Upgrade: Fusion Pro/Player Pro to Horizon FLEX per Device","HZ-FUSPL7-FLX-UG-C","HZ-FLX-1-P-SSS-C",37,308.75]
[]
[null,null,null,"•••••••••••• ITBM •••••••••••• "]
[]
[null,null,null,"•••••••••••• NSX / NICIRA •••••••••••• "]
[]
[null,null,null,"NSX for MULTI-HYPERVISOR"]
[null,"NEW",null,"• Upgrade: NSX vSphere-vCloudSteAdd-on to NSX Multi-Hypervisor ***Upgrade: NSX for vSphere - vCloud Suite Add-on to VMware NSX for Multi-Hypervisor","NX-CLAD-MHV-UG-C","NX-MHV-P-SSS-C",1424.5,863.85]
[null,"NEW",null,"• Upgrade: NSX for vSphere to NSX for Multi-Hypervisor","NX-VS-MHV-UG-C","NX-MHV-P-SSS-C",407,863.85]
[]
[null,null,null,"••••••••••••  PIVOTAL ••••••••••••• "]
[]
[null,null,null,"•••••••••••• PLAYER ••••••••••••• "]
[]
[null,null,null,"PLAYER PRO"]
[null,"NEW",null,"• Upgrade: Player 6 Plus to Player 7 Pro","PLAY7-PRO-PLAY6-UG-C","PLAY7-PRO-P-SSS-C",29.6,18.200000000000003]
[]
[null,null,null,"••••••••••••  User Environment Manager •••••••••••• "]
[]
[null,null,null,"USER ENVIRONMENT MANAGER"]
[null,"NEW",null,"• Upgrade: User Environment Mgr to Horizon ENT ED: 10 Pack (CCU) *** User Environment Manager to Horizon Enterprise Edition: 10 Pack (CCU)","HZ-UEM-ENTC-10-UG-C","HZ-ENTC-10-P-SSS-C",1942.5,617.5]
[null,"NEW",null,"• Upgrade:  User Environment Mgr to Horizon ENT ED: 10 Pack (Named Users) *** User Environment Manager to Horizon Enterprise Edition: 10 Pack (Named Users)","HZ-UEM-ENTN-10-UG-C","HZ-ENTN-10-P-SSS-C",1184,370.5]
[null,"NEW",null,"• Upgrade: User Environment Mgr to Horizon ENT ED: 100 Pack (CCU) *** User Environment Manager to Horizon Enterprise Edition: 100 Pack (CCU)","HZ-UEM-ENTC-100-UG-C","HZ-ENTC-100-P-SSS-C",19425,6175]
[null,"NEW","U","• Upgrade: User Environment Mger to Horizon ENT ED: 100 Pack (Named Users) *** User Environment Manager to Horizon Enterprise Edition: 100 Pack (Named Users)","HZ-UEM-ENTN-100-UG-C","HZ-ENTN-10-P-SSS-C",11840,3705]
[]
[null,null,null,"•••••••••••• vCENTER •••••••••••• "]
[]
[null,null,null,"vCENTER "]
[null,null,null,"• Upgrade: vCenter Server Foundation to Standard","VCS6-FND-STD-UG-C","VCS6-STD-P-SSS-C",1424.5,811.85]
[null,null,null,"• Upgrade: vCenter Site Recovery Manager - STD to ENT (25 VM Pack)","VC-SRM6-25E-UG-C","VC-SRM6-25E-P-SSS-C",3052.5,1528.15]
[]
[null,null,null,"•••••••••••• vCLOUD •••••••••••• "]
[]
[null,null,null,"• Upgrade: vCloud Suite STD to vCloud Suite ENT","CL6-CSTD-CENT-UG-C","CL6-ENT-P-SSS-C",2645.5,1419.6000000000001]
[null,null,null,"• Upgrade: vCloud Suite ADV to vCloud Suite ENT","CL6-CADV-CENT-UG-C","CL6-ENT-P-SSS-C",1628,1419.6000000000001]
[null,null,null,"• Upgrade: vCloud Suite STD to vCloud Suite ADV","CL6-CSTD-CADV-UG-C","CL6-ADV-P-SSS-C",1017.5,925.6]
[null,null,null,"• Upgrade: vSphere STD to vCloud Suite STD","CL6-VSTD-CSTD-UG-C","CL6-STD-P-SSS-C",1628,616.85]
[null,null,null,"• Upgrade: vSphere ENT to vCloud Suite STD","CL6-VENT-CSTD-UG-C","CL6-STD-P-SSS-C",862.84,616.85]
[null,null,null,"• Upgrade: vSphere ENT PLUS to vCloud Suite STD","CL6-VEPL-CSTD-UG-C","CL6-STD-P-SSS-C",610.5,616.85]
[null,null,null,"• Upgrade: vSphere w/ Ops Mgt STD to vCloud Suite STD","CL6-OSTD-CSTD-UG-C","CL6-STD-P-SSS-C",1322.75,616.85]
[null,null,null,"• Upgrade: vSphere w/ Ops Mgt ENT to vCloud Suite STD","CL6-OENT-CSTD-UG-C","CL6-STD-P-SSS-C",556.85,616.85]
[null,null,null,"• Upgrade: vSphere w/ Ops Mgt ENT PLUS to vCloud Suite STD","CL6-OEPL-CSTD-UG-C","CL6-STD-P-SSS-C",305.25,616.85]
[null,null,null,"• Upgrade: vSphere STD to vCloud Suite ADV","CL6-VSTD-CADV-UG-C","CL6-ADV-P-SSS-C",2589.2599999999998,925.6]
[null,null,null,"• Upgrade: vSphere ENT to vCloud Suite ADV","CL6-VENT-CADV-UG-C","CL6-ADV-P-SSS-C",1880.34,925.6]
[null,null,null,"• Upgrade: vSphere ENT Plus to vCloud Suite ADV","CL6-VEPL-CADV-UG-C","CL6-ADV-P-SSS-C",1628,925.6]
[null,null,null,"• Upgrade: vSphere w/ Ops Mgt STD to vCloud Suite ADV","CL6-OSTD-CADV-UG-C","CL6-ADV-P-SSS-C",2340.25,925.6]
[null,null,null,"• Upgrade:  vSphere w/ Ops Mgt ENT to vCloud Suite ADV","CL6-OENT-CADV-UG-C","CL6-ADV-P-SSS-C",1576.2,925.6]
[null,null,null,"• Upgrade: vSphere w/ Ops Mgt STD to vCloud Suite ENT","CL6-OSTD-CENT-UG-C","CL6-ENT-P-SSS-C",3968.25,1419.6000000000001]
[null,null,null,"• Upgrade: vSphere w/ Ops Mgt ENT to vCloud Suite ENT","CL6-OENT-CENT-UG-C","CL6-ENT-P-SSS-C",3204.2,1419.6000000000001]
[null,null,null,"• Upgrade: vSphere w/ Ops Mgt ENT PLUS to vCloud Suite ENT","CL6-OEPL-CENT-UG-C","CL6-ENT-P-SSS-C",2950.75,1419.6000000000001]
[null,null,null,"• Upgrade: vSphere w/ Ops Mgt ENT Plus to vCloud Suite ADV","CL6-OEPL-CADV-UG-C","CL6-ADV-P-SSS-C",1322.75,925.6]
[null,null,null,"• Upgrade: vSphere STD to vCloud Suite ENT","CL6-VSTD-CENT-UG-C","CL6-VSTD-CENT-UG-C",4069.2599999999998,1419.6000000000001]
[null,null,null,"• Upgrade: vSphere ENT to vCloud Suite ENT","CL6-VENT-CENT-UG-C","CL6-ENT-P-SSS-C",3508.34,1419.6000000000001]
[null,null,null,"• Upgrade: vSphere ENT PLUS to vCloud Suite ENT","CL6-VEPL-CENT-UG-C","CL6-VEPL-CENT-UG-C",3256,1419.6000000000001]
[]
[null,null,null,"•••••••••••• vREALIZE •••••••••••• "]
[]
[null,null,null,"vREALIZE BUSINESS"]
[null,"NEW",null,"• Upgrade: vRealize Business STD to ADV  (Per CPU)  ***Upgrade: vRealize Business Standard (Per CPU) tovRealize Business Advanced (Per CPU)","VR6-BSTD-BADV-UG-C","VR6-BADV-P-SSS-C",305.25,278.2]
[null,"NEW",null,"• Upgrade: vRealize Business STD to ENT (Per CPU)  ***Upgrade:  vRealize Business Standard (Per CPU) to vRealize Business 8 Enterprise (Per CPU)","VR6-BSTD-BENT-UG-C","VR6-BENT-P-SSS-C",764.05,416.65000000000003]
[null,"NEW",null,"• Upgrade: vRealize Business ADV to ENT (Per CPU)  ***Upgrade: vRealize Business Advanced (Per CPU) to vRealize Business Enterprise (Per CPU)","VR6-BADV-BENT-UG-C","VR6-BENT-P-SSS-C",458.8,416.65000000000003]
[]
[null,null,null,"vREALIZE CLOUD MGMT PLATFORM ENTERPRISE"]
[null,null,null,"• Upgrade: ITBusMgtSuite STD to vRealizeCloudMgtENT (25 OSI)  ***Upgrade: IT Business Management Suite 1 Standard to vRealize Suite 6 Enterprise (25 OSI Pack)","VR-STD-CMPENT-UG-C","VR-CMP-ENT-P-SSS-C",9107.5499999999993,3071.9]
[null,null,null,"• Upgrade: vC.OpsMgtSuiteSTD to vRealizeCloudMgtENT (25 OSI)  ***Upgrade: vCenter Operations 5.6 Management Suite Standard to vRealize Suite 6 Enterprise (25 OSI Pack)","VR-OSTD-CMPENT-UG-C","VR-CMP-ENT-P-SSS-C",8852.25,3071.9]
[null,null,null,"• Upgrade: vC.OpsMgtSuiteADV to vRealizeCloudMgtENT (25 OSI)  ***Upgrade: vCenter Operations 5.6 Management Suite Advanced to vRealize Suite 6 Enterprise (25 OSI Pack)","VR-OADV-CMPENT-UG-C","VR-CMP-ENT-P-SSS-C",7326,3071.9]
[null,null,null,"• Upgrade: vC.OpsMgtSuiteENT to vRealizeCloudMgtENT (25 OSI)  ***Upgrade: vCenter Operations 5.6 Management Suite Enterprise to vRealize Suite 6 Enterprise (25 OSI Pack)","VR-OENT-CMPENT-UG-C","VR-CMP-ENT-P-SSS-C",3052.5,3071.9]
[null,null,null,"• Upgrade: vC.LogInsight perOSI to vRealizeCloudMgtENT (25 OSI)  ***Upgrade: VMware vCenter Log Insight per OSI to vRealize Suite 6 Enterprise (25 OSI Pack)","VR-LIS-CMPENT-UG-C","VR-CMP-ENT-P-SSS-C",8090.05,3071.9]
[null,null,null,"• Upgrade: vCloudAutoCtrADVSuite to vRealizeCloudMgtENT (25 OSI) ***Upgrade: vCloud Automation Center 6 Advanced Suite to vRealize Suite 6 Enterprise (25 OSI Pack)","VR-CADV-CMPENT-UG-C","VR-CMP-ENT-P-SSS-C",6055.05,3071.9]
[null,null,null,"• Upgrade: vCloudAutoCtrENTSuite to vRealizeCloudMgtENT (25 OSI) ***Upgrade: vCloud Automation Center Enterprise Suite to vRealize Suite 6 Enterprise (25 OSI Pack)","VR-CENT-CMPENT-UG-C","VR-CMP-ENT-P-SSS-C",2238.5,3071.9]
[]
[null,null,null,"vREALIZE OPERATIONS INSIGHT"]
[null,"NEW",null,"• Upgrade: vCenter Log Insight (CPU) to vRealize Ops Insight  ***Upgrade: vCenter Log Insight per CPU to vRealize Operations Insight ","VR-LIS-OIST-UG-C","VR-OIST-BUN-P-SSS-C",203.5,247]
[null,null,null,"• Upgrade: vCOM ADV Add-on (vSOM) to vRealize Ops Insight  ***Upgrade:  vCenter Operations 5.8.2 Mgmt Suite Advanced Add-On for vSOM to vRealize Operations Insight 6","VR-ADA-OIST-UG-C","VR-OIST-BUN-P-SSS-C",203.5,247]
[]
[null,null,null,"vREALIZE PUBLIC CLOUD EXTENSION"]
[null,null,null,"• Upgrade: vRealize Auto Public Cloud Ext (25 OSI pack) ADV to ENT","VR-AT-ADV-ENT-UG-C","VR-AT-ENT25-P-SSS-C",1985.05,1219.4000000000001]
[null,"NEW",null,"• Upgrade: vRealize Automation (25 OSI Pack) ADV to ENT\n***Upgrade: VMware VMware vRealize Automation Advanced (25 OSI Pack) to VMware vRealize Automation Enterprise (25 OSI Pack)","CA6-ADV25-ENT25-UG-C","CA6-ENT25-P-SSS-C",3816.5499999999997,1219.4000000000001]
[null,"NEW",null,"• Upgrade: vRealize Ops Public Cloud Extension ADV to ENT\n***Upgrade:  Realize Operations Public Cloud Extension Advanced (25 OSI Pack) to vRealize Operations Public Cloud Extension Enterprise (25 OSI Pack)","VR6-PCADV-ENT-UG-C","VR6-PCENT25-P-SSS-C",1985.05,1219.4000000000001]
[]
[null,null,null,"vREALIZE SUITE"]
[null,"NEW",null,"• Upgrade: IT Bus Mgt STE STD to vRealize STE ADV (25 OSI Pack) ***Upgrade: IT Business Management Suite 1 Standard to vRealize Suite Advanced (25 OSI Pack)","VR-STD-STEADV-UG-C","VR-STE-ADV-P-SSS-C",5851.55,2083.9]
[null,"NEW",null,"• Upgrade: vCenter Log Insight to vRealize STE ADV (25 OSI Pack)\n***Upgrade: vCenter Log Insight per OSI to vRealize Suite Advanced (25 OSI Pack)","VR-LIS-STEADV-UG-C","VR-STE-ADV-P-SSS-C",4834.05,2083.9]
[null,"NEW",null,"• Upgrade: vCenter Ops Mgt STE ADV to vRealize STE ADV (25 OSI Pack) ***Upgrade:  vCenter Operations Mgt Suite Advanced to vRealize Suite Advanced (25 OSI Pack)","VR-OADV-STEADV-UG-C","VR-STE-ADV-P-SSS-C",4070,2083.9]
[null,"NEW",null,"• Upgrade: vCenter Ops Mgt STE STD to vRealize STE ADV (25 OSI Pack) ***Upgrade:  vCenter Operations Mgt Suite Standard to vRealize Suite Advanced (25 OSI Pack)","VR-OSTD-STEADV-UG-C","VR-STE-ADV-P-SSS-C",5596.25,2083.9]
[null,"NEW",null,"• Upgrade: vCloud Auto Ctr ADV STE to vRealize STE ADV (25 OSI Pack) ***Upgrade: vCloud Automation Center Advanced Suite to vRealize Suite Advanced (25 OSI Pack)","VR-CADV-STEADV-UG-C","VR-STE-ADV-P-SSS-C",2799.05,2083.9]
[null,"NEW",null,"• Upgrade: vRealize BUS STD (25 OSI) to vRealize STE ADV (25 OSI Pack) ***Upgrade: vRealize Business Standard (25 OSI Pack) to vRealize Suite Advanced (25 OSI Pack)","VR-BOSTD-STEADV-UG-C","VR-STE-ADV-P-SSS-C",4834.05,2083.9]
[null,"NEW",null,"• Upgrade: vROPS ADV to vRealize Suite ADV (25 OSI Pack)  ***Upgrade: vRealize Operations Advanced (25 OSI Pack) to vRealize Suite Advanced (25 OSI PK)","VR-RADV-STEADV-UG-C","VR-STE-ADV-P-SSS-C",4070,2083.9]
[null,"NEW",null,"• Upgrade: vROPS STE STD to vRealize STE ADV (25 OSI Pack)","VR-RSTD-STEADV-UG-C","VR-STE-ADV-P-SSS-C",5596.25,2083.9]
[null,"NEW",null,"• Upgrade: vRealize STE ADV to vRealize STE ENT (25 OSI Pack) ","VR-RADV-CMPENT-UG","VR-CMP-ENT-P-SSS-C",3256,3071.9]
[]
[null,null,null,"••••••••••••vSAN / STORAGE •••••••••••• "]
[]
[null,null,null,"VIRTUAL SAN BUNDLE"]
[null,"NEW",null,"• Upgrade: vSphere Storage Appliance to Virtual SAN Bundle","ST6-VSA-VSAN-UG-C","ST6-VSAN-BN-P-SSS-C",4245.75,1417]
[]
[null,null,null,"•••••••••••• vSPHERE •••••••••••• "]
[]
[null,null,null,"vSPHERE ENTERPRISE"]
[null,null,null,"• Upgrade: vSphere STD to ENT for 1 Processor","VS6-STD-ENT-UG-C","VS6-ENT-P-SSS-C",765.16,467.35]
[]
[null,null,null,"vSPHERE ENTERPRISE PLUS"]
[null,null,null,"• Upgrade: vSphere STD to ENT PLUS for 1 processor","VS6-STD-EPL-UG-C","VS6-EPL-P-SSS-C",1017.5,568.1]
[null,null,null,"• Upgrade: vSphere ENT to ENT PLUS for 1 processor","VS6-ENT-EPL-UG-C","VS6-EPL-P-SSS-C",276.91000000000003,568.1]
[]
[null,null,null,"vSPHERE w/ OPS MGMT STANDARD"]
[null,null,null,"• Upgrade: vSphere STD to vSphere w/ Ops Mgt STD for 1 Processor","VS6-STD-OSTD-UG-C","VS6-OSTD-P-SSS-C",305.25,215.8]
[]
[null,null,null,"vSPHERE w/ OPS MGMT ENTERPRISE"]
[null,null,null,"• Upgrade: vSphere STD to vSphere w/ Ops Mgt ENT for 1 Processor","VS6-STD-OENT-UG-C","VS6-OENT-P-SSS-C",1071.1500000000001,447.85]
[null,null,null,"• Upgrade: vSphere ENT to vSphere w/ Ops Mgt ENT for 1 Processor","VS6-ENT-OENT-UG-C","VS6-OENT-P-SSS-C",305.25,447.85]
[null,null,null,"• Upgrade: vSphere w/ Ops Mgt STD to ENT for 1 Processor","VS6-OSTD-OENT-UG-C","VS6-OENT-P-SSS-C",765.9,447.85]
[]
[null,null,null,"vSPHERE w/ OPS MGMT ENTERPRISE PLUS"]
[null,null,null,"• Upgrade: vSphere STD to vSphere w/ Ops Mgt ENT PLUS for 1 Processor","VS6-STD-OEPL-UG-C","VS6-OEPL-P-SSS-C",1322.75,524.55000000000007]
[null,null,null,"• Upgrade: vSphere ENT to vSphere w/ Ops Mgt ENT PLUS for 1 Processor","VS6-ENT-OEPL-UG-C","VS6-OEPL-P-SSS-C",558.70000000000005,524.55000000000007]
[null,null,null,"• Upgrade: vSphere ENT PL to vSphere w/ Ops Mgt ENT PLUS for 1 Processor","VS6-EPL-OEPL-UG-C","VS6-OEPL-P-SSS-C",305.25,524.55000000000007]
[null,null,null,"• Upgrade: vSphere w/ Ops Mgt STD to ENT PLUS for 1 Processor","VS6-OSTD-OEPL-UG-C","VS6-OEPL-P-SSS-C",1017.5,524.55000000000007]
[null,null,null,"• Upgrade: vSphere w/ Ops Mgt ENT to ENT PLUS for 1 Processor","VS6-OENT-OEPL-UG-C","VS6-OEPL-P-SSS-C",253.45,524.55000000000007]
[]
[null,null,null,"vSPHERE w/ OPS MGMT STANDARD ACCELERATION KIT"]
[null,null,null,"• Upgrade: vSphereEssent to vSphere w/OpsMgmt STD Accel Kit","VS5-ES-MSTD-AK-UG-C","VS5-MSTD-AK-P-SSS-C",3605.65,1234.3499999999999]
[null,null,null,"• Upgrade: vSphereEssentPlus to vSphere w/OpsMgmt STD Accel Kit","VS5-ESP-MSTD-AK-UG-C","VS5-MSTD-AK-P-SSS-C",2238.5,1234.3499999999999]
[]
[null,null,null,"vSPHERE w/ OPS MGMT ENTERPRISE ACCELERATION KIT"]
[null,null,null,"• Upgrade: vSphereEssent to vSphere w/OpsMgt ENT Accel Kit for 6 Processors","VS6-ES-OENT-AK-UG-C","VS6-OENT-AK-P-SSS-C",7120.65,2407.6]
[null,null,null,"• Upgrade: vSphereEssentPlus to vSphere w/OpsMgt ENT Accel Kit for 6 Processors","VS6-ESP-OENT-AK-UG-C","VS6-OENT-AK-P-SSS-C",6105,2407.6]
[]
[null,null,null,"vSPHERE w/ OPS MGMT ENTERPRISE PLUS ACCELERATION KIT"]
[null,null,null,"• Upgrade: vSphereEssent to vSphere w/OpsMgt ENTPL Accel Kit","VS5-ES-VEPL-AK-UG-C","VS5-VEPLAK-2M-PSSS-C",8600.65,2901.6]
[null,null,null,"• Upgrade: vSphereEssentPl to vSphere w/OpsMgtENTPL Accel Kit","VS5-ESP-VEPL-AK-UG-C","VS5-VEPLAK-2M-PSSS-C",7733,2901.6]
[]
[null,null,null,"vSPHERE ESSENTIALS PLUS"]
[null,null,null,"• Upgrade: vSphere Essentials to Essentials Plus Kit - for 3 hosts (Max 2 processors per host)","VS6-ES-ESPL-UG-C","VS6-ESP-KIT-P-SSS-C",1628,555.09999999999991,null,"NOTE:  Max 3 hosts, 2 processors per host."]
[]
[null,null,null,"vSPHERE ESSENTIALS PLUS for RETAIL & BRANCH OFFICES"]
[null,null,null,"• Upgrade: vSphere Essentials to Essentials Plus Kit - for 3 hosts (Max 2 processors per host)","VS6-ES-ESPL-UG-C","VS6-ESP-KIT-P-SSS-C",1628,555.09999999999991]
[]
[null,null,null,"vSPHERE REMOTE/BRANCH OFFICE"]
[null,null,null,"• Upgrade: vSphereRemoteBranchOffice STD to ADV (25 VM Pack)","VS6-RBSTD-ADV25-UG-C","VS6-RBADV-2M-PSSS-C",610.5,555.75]
[]
[null,null,null,"•••••••••••• WORKSTATION •••••••••••• "]
[]
[null,null,null,"WORKSTATION"]
[null,"NEW",null,"• Upgrade: Workstation 11 Upgrade from Vers: 9.x/10.x/or Player 6 Plus for Linux/Windows, ESD  ","WS11-LW-UG-CE","WS-P-SSS-C",44.03,30.55]
[null,"NEW",null,"• Upgrade: Workstation 11 Upgrade from Player Pro for Lin/Win,ESD  ***Upgrade:  Workstation 11 Upgrade from Player 7 Pro for Linux and Windows, ESD","WS11-LWP7-UG-CE","WS-P-SSS-C",37,30.55]
[]
[]
[]
[]
[null,null,null,"Maintenance Renewal Pricing  (existing OARnet licenses ONLY)"]
[null,null,null,"Product","SnS Code","1 yr SnS Fee"]
[]
[null,null,null,"AIRWATCH"]
[null,null,null,"• AirWatch by VMware Secure Content Locker Collaborate","V-MCC-MF-ANY-DEV-C",6.5]
[null,null,null,"• AirWatch by VMware Management Suite for Laptops","V-MS-MF-DEV-LT-C",6.5]
[null,null,null,"• AirWatch by VMware Management Suite for Rugged Devices","V-MS-MF-DEV-RG-C",6.5]
[null,null,null,"• AirWatch by VMware Green Management Suite","V-GMS-MF-DEV-C",6.5]
[null,null,null,"• AirWatch by VMware Orange Management Suite","V-OMS-MF-DEV-C",8.4499999999999993]
[null,null,null,"• AirWatch by VMware Blue Management Suite","V-BMS-MF-DEV-C",11.05]
[null,null,null,"• AirWatch by VMware Yellow Management Suite","V-YMS-MF-DEV-C",16.25]
[]
[null,null,null,"APP VOLUME"]
[null,null,null,"• App Volumes 10 Pack (CCU)","CV-CCU-10-P-SSS-C",185.25]
[null,null,null,"• App Volumes 100 Pack (CCU)","CV-CCU-100-P-SSS-C",1852.5]
[]
[null,null,null,"CONTINUENT"]
[null,"NEW",null,"• Continuent for Analytics & Big Data - Per Cluster License","CN-ABD-P-SSS-C",11115]
[null,"NEW",null,"• Continuent for Clustering - Per Database Server License","CN-CP-P-SSS-C",3705]
[null,"NEW",null,"• Continuent for Disaster Recovery - Per Database Server License","CN-DR-P-SSS-C",1852.5]
[null,"NEW",null,"• Continuent for Replication - Per Database Server License","CN-RP-P-SSS-C",3705]
[]
[null,null,null,"FUSION"]
[null,null,null,"• Fusion Professional Edition, ESD  (SnS is optional)","FUS-PRO-P-SSS-C",16.25]
[]
[null,null,null,"HORIZON"]
[null,null,null,"• Horizon DaaS On Premise Platform: 100-pack","HZ-DS-100-P-SSS-C",3396.25]
[null,null,null,"• Horizon FLEX 10 pack (Per Device)","HZ-FLX-10-P-SSS-C",308.75]
[null,null,null,"• Horizon View Standard Add-On: 10 pack (CCU)","HZ-STD-A10-P-SSS-C",234.65]
[null,null,null,"• Horizon View Standard Add-On: 100 pack (CCU)","HZ-STD-A100-P-SSS-C",2346.5]
[null,null,null,"• Horizon View Standard Edition (10 pack) (CCU)","HZ-STD-10-P-SSS-C",308.75]
[null,null,null,"• Horizon View Standard Edition (100 pack) (CCU)","HZ-STD-100-P-SSS-C",3087.5]
[null,null,null,"• Horizon Advanced Edition (10 pack) (CCU)","HZ-ADVC-10-P-SSS-C",494]
[null,null,null,"• Horizon Advanced Edition (100 pack) (CCU)","HZ-ADVC-100-P-SSS-C",4940]
[null,null,null,"• Horizon Advanced Edition (10 pack) (Named Users)","HZ-ADVN-10-P-SSS-C",308.75]
[null,null,null,"• Horizon Advanced Edition (100 pack) (Named Users)","HZ-ADVN-100-P-SSS-C",3087.5]
[null,null,null,"• Horizon Enterprise Edition (10 pack) (CCU)","HZ-ENTC-10-P-SSS-C",617.5]
[null,null,null,"• Horizon Enterprise Edition (100 pack) (CCU)","HZ-ENTC-100-P-SSS-C",6175]
[null,null,null,"• Horizon Enterprise Edition (10 pack) (Named Users)","HZ-ENTN-10-P-SSS-C",370.5]
[null,null,null,"• Horizon Enterprise Edition (100 pack) (Named Users)","HZ-ENTN-100-P-SSS-C",3705]
[null,null,null,"• Horizon Workspace Portal: 10 pack","WSP-10-P-SSS-C",61.75]
[null,null,null,"• Horizon Workspace Portal: 100 pack","WSP-100-P-SSS-C",617.5]
[]
[null,null,null,"IT BUSINESS/FINANCIAL MANAGEMENT"]
[null,null,null,"• IT Business Management Foundation package","DF-ITBM-FND-P-SSS-C",55575]
[null,null,null,"• IT Business Management Additional User","DF-ITBM-P-SSS-C",9262.5]
[null,null,null,"• IT Business Management Read-Only","DF-ITBM5-P-SSS-C",2778.75]
[null,null,null,"• IT Business Management Suite Standard (25 OSI pack)","BM-STD25-P-SSS-C",308.75]
[null,null,null,"• IT Financial Management Foundation package","DF-ITFM-FND-P-SSS-C",37050]
[null,null,null,"• IT Financial Management Additional User","DF-ITFM-ADD-P-SSS-C",7410]
[null,null,null,"• IT Financial Management Read-Only","DF-ITFM5-P-SSS-C",2778.75]
[]
[null,null,null,"MIRAGE"]
[null,null,null,"• Mirage for Physical: 10 Pack","MGP-10-P-SSS-C",185.25]
[null,null,null,"• Mirage for Physical: 100 Pack","MGP-100-P-SSS-C",1852.5]
[]
[null,null,null,"NSX"]
[null,null,null,"• NSX for Multi-Hypervisor per Processor","NX-MHV-3P-SSS-C",863.85]
[null,null,null,"• NSX vSphere  ","NX-VS-P-SSS-C",740.35]
[null,null,null,"• NSX vSphere - vCloud Suite Add-on","NX-CLAD-P-SSS-C",431.6]
[]
[null,null,null,"PIVOTAL"]
[null,null,null,"• Pivotal GemFire XD (Per Core)","PV-GFXD-CPU-P-SSS-C",308.75]
[]
[null,null,null,"PLAYER"]
[null,null,null,"• Player Pro","PLAY7-PRO-P-SSS-C",18.200000000000003]
[]
[null,null,null,"THINAPP"]
[null,null,null,"• ThinApp Suite","THIN5-STE-P-SSS-C",617.5]
[null,null,null,"• ThinApp Client (100 pack)","THIN5-100PK-P-SSS-C",234.65]
[]
[null,null,null,"VIRTUAL SAN"]
[null,null,null,"• Virtual SAN for 1-Processor","ST-VSAN-P-SSS-C",308.10000000000002]
[null,null,null,"• Virtual SAN for Desktop (10 pack) CCU","ST-VSAND10-P-SSS-C",61.75]
[null,null,null,"• Virtual SAN for Desktop (100 pack) CCU","ST-VSAND100-P-SSS-C",617.5]
[]
[null,null,null,"vCENTER CONFIGURATION MANAGER"]
[null,null,null,"• vCenter Configuration Manager Workstation - Linux/Windows","VC-CMW-P-SSS-C",5.2]
[]
[null,null,null,"vCENTER LOG INSIGHT"]
[null,null,null,"• vCenter Log Insight per CPU","VC-LIS-CPU-P-SSS-C",185.25]
[null,null,null,"• vCenter Log Insight (25 OSI pack)","VC-LIS-25-P-SSS-C",617.5]
[]
[null,null,null,"vCENTER OPERATIONS MANAGEMENT"]
[null,null,null,"• vCenter Operations Mgmt Suite STD (25 VM pack)","VC56-STD25-P-SSS-C",386.1]
[null,null,null,"• vCenter Operations Mgmt Suite ADV (25 OperatingSysInstance pack)","VC56-ADV25-P-SSS-C",772.2]
[null,null,null,"• vCenter Operations Mgmt Suite ENT (25 OperatingSysInstance pack)","VC56-ENT25-P-SSS-C",1852.5]
[null,null,null,"• vCenter Operations Management pack for EPIC","VC-EPIC-P-SSS-C",7410]
[null,null,null,"• vCenter Operations Manager for View: 10 Concur. User pack","VC-O5-VU10-P-SSS-C",92.95]
[null,null,null,"• vCenter Operations Manager for View: 100 Concur. User pack","VC-O5-VU100-P-SSS-C",926.25]
[]
[null,null,null,"vCENTER SERVER"]
[null,null,null,"• vCenter Server Foundation (3 hosts)","VCS5-FND-P-SSS-C",184.6]
[null,null,null,"• vCenter Server Standard","VCS5-STD-P-SSS-C",811.85]
[]
[null,null,null,"vCENTER SITE RECOVERY"]
[null,null,null,"• vCenter Site Recovery Manager Standard (25 VM pack)","VC-SRM5-25S-P-SSS-C",601.9]
[null,null,null,"• vCenter Site Recovery Manager Enterprise (25 VM pack)","VC-SRM5-25E-P-SSS-C",1528.15]
[]
[null,null,null,"vCLOUD"]
[null,null,null,"• vCloud Automation Center ADV (25 pack)","CA6-ADV25-C -P-SSS-C",1235]
[null,null,null,"• vCloud Automation Center Enterprise (25 OSI pack)","CA6-ENT25-P-SSS-C",2392.65]
[null,null,null,"• vCloud Automation Center for Desktop (25 pack)","CA6-AUTDT25-P-SSS-C",410.8]
[null,null,null,"• vCloud Automation Center Development Kit - per Instance","CA6-DEVK-P-SSS-C",2470]
[null,null,null,"• vCloud Suite Standard","CL5-STD-P-SSS-C",616.85]
[null,null,null,"• vCloud Suite Advanced","CL5-ADV-P-SSS-C",925.6]
[null,null,null,"• vCloud Suite Enterprise","CL5-ENT-P-SSS-C",1419.6000000000001]
[]
[null,null,null,"vFABRIC"]
[null,null,null,"• vFabric Data Director 2.x License (25 VM pack)","VF-DD2-25VM-P-SSS-C",2315.9500000000003]
[]
[null,null,null,"vREALIZE"]
[null,null,null,"• vRealize Automation ADV Public Cloud Extension (25 OSI pack)","VR-AT-ADV25-P-SSS-C",617.5]
[null,null,null,"• vRealize Automation ENT Public Cloud Extension (25 OSI pack)","VR-AT-ENT25-P-SSS-C",1219.4000000000001]
[null,null,null,"• vRealize Business Standard (25 OSI Pack)","VR6-BSTD25-P-SSS-C",617.5]
[null,null,null,"• vRealize Business Standard (Per CPU)","VR6-BSTD-P-SSS-C",185.25]
[null,null,null,"• vRealize Business Advanced (Per CPU)","VR6-BADV-P-SSS-C",278.2]
[null,null,null,"• vRealize Business Enterprise (Per CPU)","VR6-BENT-P-SSS-C",416.65000000000003]
[null,null,null,"• vRealize Cloud Management Platform ADV (25 OSI pack)","VR-CMP-ADV-P-SSS-C",1775.15]
[null,null,null,"• vRealize Cloud Management Platform ENT (25 OSI pack)","VR-CMP-ENT-P-SSS-C",3071.9]
[null,null,null,"• vRealize Code Stream (Per CPU)","VR-CODE-CPU-P-SSS-C",926.25]
[null,null,null,"• vRealize Code Stream (Per OSI)","VR-CODE-OSI-P-SSS-C",154.70000000000002]
[null,null,null,"• vRealize Hyperic Perpetual License (Per Machine)","VF-HYPM5-P-SSS-C",44.2]
[null,null,null,"• vRealize Operations Insight","VR-OIST-BUN-P-SSS-C",247]
[null,null,null,"• vRealize Operations for Horizon: 100 Concurrent User Pack","VR6-VU100-P-SSS-C",926.25]
[null,null,null,"• vRealize Operations Public Cloud Extension ADV (25 OSI Pack)","VR6-PCADV25-P-SSS-C",617.5]
[null,null,null,"• vRealize Operations Public Cloud Extension ENT (25 OSI Pack)","VR6-PCENT25-P-SSS-C",1219.4000000000001]
[null,null,null,"• vRealize Suite 6 Advanced (25 OSI Pack)","VR-STE-ADV-P-SSS-C",2083.9]
[]
[null,null,null,"vSPHERE"]
[null,null,null,"• vSphere Standard (per CPU)","VS5-STD-P-SSS-C",122.85000000000001]
[null,null,null,"• vSphere Enterprise (per CPU)","VS5-ENT-P-SSS-C",467.35]
[null,null,null,"• vSphere Enterprise Plus (per CPU)","VS5-ENT-PL-P-SSS-C",568.1]
[null,null,null,"• vSphere Enterprise Plus w/ Cisco Nexus 1000V Bundle","VS5-NXP-BUN-P-SSS-C",633.12]
[null,null,null,"• vSphere w/ Operations Management STD (per CPU)","VS5-OSTD-P-SSS-C",215.8]
[null,null,null,"• vSphere w/ Operations Management ENT (per CPU)","VS5-OENT-P-SSS-C",447.85]
[null,null,null,"• vSphere w/ Operations Management ENT PLUS (per CPU)","VS5-OEPL-P-SSS-C",524.55000000000007]
[]
[null,null,null,"vSPHERE KITS"]
[null,null,null,"• vSphere Essentials Plus Kit (3 hosts)","VS5-ESP-KIT-P-SSS-C",555.09999999999991]
[null,null,null,"• vSphere Essentials Kit - Retail & Branch Offices (10 CPUs)","VS5-RBES10-P-SSS-C",102.05]
[null,null,null,"• vSphere Essentials Plus Kit - Retail & Branch Offices (10 CPUs)","VS5-RBESP10-P-SSS-C",925.6]
[null,null,null,"• vSphere w/ Operations Mgmt STD Acceleration Kit","VS5-MSTD-AK-P-SSS-C",1234.3499999999999]
[null,null,null,"• vSphere w/ Operations Mgmt ENT Acceleration Kit (6 proc.)","VS5-VENT-AK-P-SSS-C",2407.6]
[null,null,null,"• vSphere w/ Operations Mgmt ENT PLUS Acceleration Kit (6 proc.)","VS5-VEPL-AK-P-SSS-C",2901.6]
[]
[null,null,null,"vSPHERE (OTHER)"]
[null,null,null,"• vSphere Data Protection Advanced (per processor)","VS5-DPA-P-SSS-C",135.20000000000002]
[null,null,null,"• vSphere Data Protection Advanced Add-on for vSOM Accel Kit Bundle","VS5-DPA-BUN-P-SSS-C",487.5]
[null,null,null,"• vSphere Desktop (100 VM pack)","VS5-DT100VM-P-SSS-C",802.75]
[null,null,null,"• vSphere Remote Office Branch Office Standard (25 VM pack)","VS5-RBSTD25-P-SSS-C",370.5]
[null,null,null,"• vSphere Remote Office Branch Office Advanced (25 VM pack)","VS5-RBADV25-P-SSS-C",555.75]
[]
[null,null,null,"WORKSPACE SUITE"]
[null,null,null,"• Workspace Suite On Premise, Perpetual: 10 Named Users","WSP-STE-10-P-SSS-C",605.15]
[null,null,null,"• Workspace Suite On Premise, Perpetual: 100 Named Users","WSP-STE-100-P-SSS-C",6051.5]
[]
[null,null,null,"WORKSTATION"]
[null,null,null,"• Workstation - Windows/Linux (SnS is optional)","WS-P-SSS-C",30.55]
[]
[null,null,null,"• vSphere Remote Office Branch Office Advanced (25 VM pack)","VS5-RBADV25-P-SSS-C",555.75]
[]
[null,null,null,"WORKSTATION"]
[null,null,null,"• Workstation - Windows/Linux (SnS is optional)","WS-P-SSS-C",30.55]
[]
[null,null,null,"DISCONTINUED PRODUCTS"]
[null,null,null,"• Horizon Mirage 10 Pack","HZ-MRG-10-P-SSS-C",185.25]
[null,null,null,"• Horizon Mirage 100 Pack","HZ-MRG-100-P-SSS-C",1852.5]
[null,null,null,"• Horizon View 5 Bundle: 10 Pack","VU5-PR-STR-P-SSS-C",308.75]
[null,null,null,"• Horizon View 5 Bundle: 100 Pack","VU5-PR-100-P-SSS-C",3087.5]
[null,null,null,"• Horizon View 5 Add-On: 10 Pack","VU5-PR-A10-P-SSS-C",234.65]
[null,null,null,"• Horizon View 5 Add-On: 100 Pack","VU5-PR-A100-P-SSS-C",2346.5]
[null,null,null,"• Horizon Workspace 10 Pack","HZ-WSP-10-P-SSS-C",185.25]
[null,null,null,"• Horizon Workspace 100 Pack","HZ-WSP-100-P-SSS-C",1852.5]
[null,null,null,"• Mirage Bundle for 10 named Users","MG-10-BUN-P-SSS-C",247]
[null,null,null,"• ThinApp Client","THIN4-CL-P-SSS-C",6.34]
[null,null,null,"• vCenter Server Heartbeat","VCHB-VCMS-P-SSS-C",1234.3499999999999]
[null,null,null,"• vCenter Site Recovery Manager (per CPU)","VI-SRM-P-SSS-C",284.38]
[null,null,null,"• vCloud Director (25 VM Pack)","VC-CD-25VM-P-SSS-C",616.29]
[null,null,null,"• vCloud Networking and Security Standard (25 VM Pack) - EOSL 09/19/2016","CL5-NSSTD25-P-SSS-C",463.45]
[null,null,null,"• vCloud Networking and Security Advanced (25 VM Pack) - EOSL 09/19/2016","CL5-NSADV25-P-SSS-C",772.2]
[null,null,null,"• vSphere w/ Operations Mgmt Enterprise Acceleration Kit  - Soft Bundle ","VS5-MENT-AK-P-SSS-C",2839.85]
[null,null,null,"• vSphere w/ Operations Mgmt Enterprise Plus Acceleration Kit - Soft Bundle ","VS5-MEPL-AK-P-SSS-C",3457.35]

{"sheet":"Click to Quote","index":2,"n_rows":69,"n_cols":11,"rows_kept":69,"cut":false,"hidden":false,"merged":[[26,0,26,1],[20,0,20,2],[20,3,20,5],[20,6,20,9],[34,0,34,2],[34,3,34,5],[34,6,34,9],[27,0,27,1],[28,0,28,1],[29,0,29,1],[30,0,30,1],[31,0,31,1],[12,0,12,10],[22,0,22,1],[23,0,23,1],[24,0,24,1],[25,0,25,1],[21,0,21,1],[53,0,53,1],[42,0,42,1],[43,0,43,1],[45,0,45,1],[48,0,48,1],[49,0,49,1],[50,0,50,1],[41,0,41,1],[35,0,35,1],[60,0,60,1],[61,0,61,1],[57,0,57,1],[54,0,54,1],[55,0,55,1],[56,0,56,1],[36,0,36,1],[37,0,37,1],[38,0,38,1],[39,0,39,1],[40,0,40,1],[44,0,44,1],[51,0,51,1],[52,0,52,1]]}
[]
[]
[]
[]
[]
[]
[]
[]
[]
[]
[]
[]
["VMware Price Quote"]
[]
["Quote #:",{"$f":"CONCATENATE(\"OAR\",ROUND(NOW(),2),ROUND((RAND()*10000),0))","v":"OAR42205.445514"},null,null,null,null,null,null,null,"Date:",{"$f":"TODAY()","v":"2015-07-20"}]
[]
["Customer Name:",{"$f":"IF('VMware FINAL ORDER SUMMARY'!$H$51=FALSE,\"\",'VMware FINAL ORDER SUMMARY'!$H$51)","v":""}]
[]
[]
["New Licenses"]
["VMware Products",null,null,"License Fees",null,null,"Maintenance Fees"]
["Product",null,"Product Code","Qty","License Fee","License Total","SnS Term","SnS Fee","SnS Total","SnS Code","Total Cost"]
[{"$f":"'VMware FINAL ORDER SUMMARY'!$F76","v":0},null,{"$f":"'VMware FINAL ORDER SUMMARY'!H76","v":""},{"$f":"'VMware FINAL ORDER SUMMARY'!J76","v":0},{"$f":"'VMware FINAL ORDER SUMMARY'!K76","v":""},{"$f":"'VMware FINAL ORDER SUMMARY'!L76","v":""},{"$f":"'VMware FINAL ORDER SUMMARY'!M76","v":0},{"$f":"'VMware FINAL ORDER SUMMARY'!N76","v":""},{"$f":"'VMware FINAL ORDER SUMMARY'!O76","v":""},{"$f":"'VMware FINAL ORDER SUMMARY'!P76","v":""},{"$f":"'VMware FINAL ORDER SUMMARY'!S76","v":0}]
[{"$f":"'VMware FINAL ORDER SUMMARY'!$F77","v":0},null,{"$f":"'VMware FINAL ORDER SUMMARY'!H77","v":""},{"$f":"'VMware FINAL ORDER SUMMARY'!J77","v":0},{"$f":"'VMware FINAL ORDER SUMMARY'!K77","v":""},{"$f":"'VMware FINAL ORDER SUMMARY'!L77","v":""},{"$f":"'VMware FINAL ORDER SUMMARY'!M77","v":0},{"$f":"'VMware FINAL ORDER SUMMARY'!N77","v":""},{"$f":"'VMware FINAL ORDER SUMMARY'!O77","v":""},{"$f":"'VMware FINAL ORDER SUMMARY'!P77","v":""},{"$f":"'VMware FINAL ORDER SUMMARY'!S77","v":0}]
[{"$f":"'VMware FINAL ORDER SUMMARY'!$F78","v":0},null,{"$f":"'VMware FINAL ORDER SUMMARY'!H78","v":""},{"$f":"'VMware FINAL ORDER SUMMARY'!J78","v":0},{"$f":"'VMware FINAL ORDER SUMMARY'!K78","v":""},{"$f":"'VMware FINAL ORDER SUMMARY'!L78","v":""},{"$f":"'VMware FINAL ORDER SUMMARY'!M78","v":0},{"$f":"'VMware FINAL ORDER SUMMARY'!N78","v":""},{"$f":"'VMware FINAL ORDER SUMMARY'!O78","v":""},{"$f":"'VMware FINAL ORDER SUMMARY'!P78","v":""},{"$f":"'VMware FINAL ORDER SUMMARY'!S78","v":0}]
[{"$f":"'VMware FINAL ORDER SUMMARY'!$F79","v":0},null,{"$f":"'VMware FINAL ORDER SUMMARY'!H79","v":""},{"$f":"'VMware FINAL ORDER SUMMARY'!J79","v":0},{"$f":"'VMware FINAL ORDER SUMMARY'!K79","v":""},{"$f":"'VMware FINAL ORDER SUMMARY'!L79","v":""},{"$f":"'VMware FINAL ORDER SUMMARY'!M79","v":0},{"$f":"'VMware FINAL ORDER SUMMARY'!N79","v":""},{"$f":"'VMware FINAL ORDER SUMMARY'!O79","v":""},{"$f":"'VMware FINAL ORDER SUMMARY'!P79","v":""},{"$f":"'VMware FINAL ORDER SUMMARY'!S79","v":0}]
[{"$f":"'VMware FINAL ORDER SUMMARY'!$F80","v":0},null,{"$f":"'VMware FINAL ORDER SUMMARY'!H80","v":""},{"$f":"'VMware FINAL ORDER SUMMARY'!J80","v":0},{"$f":"'VMware FINAL ORDER SUMMARY'!K80","v":""},{"$f":"'VMware FINAL ORDER SUMMARY'!L80","v":""},{"$f":"'VMware FINAL ORDER SUMMARY'!M80","v":0},{"$f":"'VMware FINAL ORDER SUMMARY'!N80","v":""},{"$f":"'VMware FINAL ORDER SUMMARY'!O80","v":""},{"$f":"'VMware FINAL ORDER SUMMARY'!P80","v":""},{"$f":"'VMware FINAL ORDER SUMMARY'!S80","v":0}]
[{"$f":"'VMware FINAL ORDER SUMMARY'!$F81","v":0},null,{"$f":"'VMware FINAL ORDER SUMMARY'!H81","v":""},{"$f":"'VMware FINAL ORDER SUMMARY'!J81","v":0},{"$f":"'VMware FINAL ORDER SUMMARY'!K81","v":""},{"$f":"'VMware FINAL ORDER SUMMARY'!L81","v":""},{"$f":"'VMware FINAL ORDER SUMMARY'!M81","v":0},{"$f":"'VMware FINAL ORDER SUMMARY'!N81","v":""},{"$f":"'VMware FINAL ORDER SUMMARY'!O81","v":""},{"$f":"'VMware FINAL ORDER SUMMARY'!P81","v":""},{"$f":"'VMware FINAL ORDER SUMMARY'!S81","v":0}]
[{"$f":"'VMware FINAL ORDER SUMMARY'!$F82","v":0},null,{"$f":"'VMware FINAL ORDER SUMMARY'!H82","v":""},{"$f":"'VMware FINAL ORDER SUMMARY'!J82","v":0},{"$f":"'VMware FINAL ORDER SUMMARY'!K82","v":""},{"$f":"'VMware FINAL ORDER SUMMARY'!L82","v":""},{"$f":"'VMware FINAL ORDER SUMMARY'!M82","v":0},{"$f":"'VMware FINAL ORDER SUMMARY'!N82","v":""},{"$f":"'VMware FINAL ORDER SUMMARY'!O82","v":""},{"$f":"'VMware FINAL ORDER SUMMARY'!P82","v":""},{"$f":"'VMware FINAL ORDER SUMMARY'!S82","v":0}]
[{"$f":"'VMware FINAL ORDER SUMMARY'!$F83","v":0},null,{"$f":"'VMware FINAL ORDER SUMMARY'!H83","v":""},{"$f":"'VMware FINAL ORDER SUMMARY'!J83","v":0},{"$f":"'VMware FINAL ORDER SUMMARY'!K83","v":""},{"$f":"'VMware FINAL ORDER SUMMARY'!L83","v":""},{"$f":"'VMware FINAL ORDER SUMMARY'!M83","v":0},{"$f":"'VMware FINAL ORDER SUMMARY'!N83","v":""},{"$f":"'VMware FINAL ORDER SUMMARY'!O83","v":""},{"$f":"'VMware FINAL ORDER SUMMARY'!P83","v":""},{"$f":"'VMware FINAL ORDER SUMMARY'!S83","v":0}]
[{"$f":"'VMware FINAL ORDER SUMMARY'!$F84","v":0},null,{"$f":"'VMware FINAL ORDER SUMMARY'!H84","v":""},{"$f":"'VMware FINAL ORDER SUMMARY'!J84","v":0},{"$f":"'VMware FINAL ORDER SUMMARY'!K84","v":""},{"$f":"'VMware FINAL ORDER SUMMARY'!L84","v":""},{"$f":"'VMware FINAL ORDER SUMMARY'!M84","v":0},{"$f":"'VMware FINAL ORDER SUMMARY'!N84","v":""},{"$f":"'VMware FINAL ORDER SUMMARY'!O84","v":""},{"$f":"'VMware FINAL ORDER SUMMARY'!P84","v":""},{"$f":"'VMware FINAL ORDER SUMMARY'!S84","v":0}]
[{"$f":"'VMware FINAL ORDER SUMMARY'!$F85","v":0},null,{"$f":"'VMware FINAL ORDER SUMMARY'!H85","v":""},{"$f":"'VMware FINAL ORDER SUMMARY'!J85","v":0},{"$f":"'VMware FINAL ORDER SUMMARY'!K85","v":""},{"$f":"'VMware FINAL ORDER SUMMARY'!L85","v":""},{"$f":"'VMware FINAL ORDER SUMMARY'!M85","v":0},{"$f":"'VMware FINAL ORDER SUMMARY'!N85","v":""},{"$f":"'VMware FINAL ORDER SUMMARY'!O85","v":""},{"$f":"'VMware FINAL ORDER SUMMARY'!P85","v":""},{"$f":"'VMware FINAL ORDER SUMMARY'!S85","v":0}]
[]
["Upgrade Licenses:"]
["VMware Products",null,null,"License Fees",null,null,"Maintenance Fees"]
["Product",null,"Product Code","Qty","License Fee","License Total","SnS Term","SnS Fee","SnS Total","SnS Code","Total Cost"]
[{"$f":"'VMware FINAL ORDER SUMMARY'!$F91","v":0},null,{"$f":"'VMware FINAL ORDER SUMMARY'!H91","v":""},{"$f":"'VMware FINAL ORDER SUMMARY'!J91","v":0},{"$f":"'VMware FINAL ORDER SUMMARY'!K91","v":""},{"$f":"'VMware FINAL ORDER SUMMARY'!L91","v":""},{"$f":"'VMware FINAL ORDER SUMMARY'!M91","v":0},{"$f":"'VMware FINAL ORDER SUMMARY'!N91","v":""},{"$f":"'[1]VMware FINAL ORDER SUMMARY'!O70","v":0},{"$f":"'VMware FINAL ORDER SUMMARY'!P91","v":""},{"$f":"'VMware FINAL ORDER SUMMARY'!S91","v":0}]
[{"$f":"'VMware FINAL ORDER SUMMARY'!$F92","v":""},null,null,null,null,null,null,{"$f":"'VMware FINAL ORDER SUMMARY'!O92","v":""},{"$f":"'VMware FINAL ORDER SUMMARY'!O92","v":""},null,{"$f":"'VMware FINAL ORDER SUMMARY'!S92","v":""}]
[{"$f":"'VMware FINAL ORDER SUMMARY'!$F93","v":0},null,{"$f":"'VMware FINAL ORDER SUMMARY'!H93","v":""},{"$f":"'VMware FINAL ORDER SUMMARY'!J93","v":0},{"$f":"'VMware FINAL ORDER SUMMARY'!K93","v":""},{"$f":"'VMware FINAL ORDER SUMMARY'!L93","v":""},{"$f":"'VMware FINAL ORDER SUMMARY'!M93","v":0},{"$f":"'VMware FINAL ORDER SUMMARY'!N93","v":""},{"$f":"'[1]VMware FINAL ORDER SUMMARY'!O72","v":""},{"$f":"'VMware FINAL ORDER SUMMARY'!P93","v":""},{"$f":"'VMware FINAL ORDER SUMMARY'!S93","v":0}]
[{"$f":"'VMware FINAL ORDER SUMMARY'!$F94","v":""},null,null,null,null,null,null,{"$f":"'VMware FINAL ORDER SUMMARY'!N94","v":0},{"$f":"'[1]VMware FINAL ORDER SUMMARY'!O73","v":""},null,{"$f":"'VMware FINAL ORDER SUMMARY'!S94","v":""}]
[{"$f":"'VMware FINAL ORDER SUMMARY'!$F95","v":0},null,{"$f":"'VMware FINAL ORDER SUMMARY'!H95","v":""},{"$f":"'VMware FINAL ORDER SUMMARY'!J95","v":0},{"$f":"'VMware FINAL ORDER SUMMARY'!K95","v":""},{"$f":"'VMware FINAL ORDER SUMMARY'!L95","v":""},{"$f":"'VMware FINAL ORDER SUMMARY'!M95","v":0},{"$f":"'VMware FINAL ORDER SUMMARY'!N95","v":""},{"$f":"'[1]VMware FINAL ORDER SUMMARY'!O74","v":""},{"$f":"'VMware FINAL ORDER SUMMARY'!P95","v":""},{"$f":"'VMware FINAL ORDER SUMMARY'!S95","v":0}]
[{"$f":"'VMware FINAL ORDER SUMMARY'!$F96","v":""},null,null,null,null,null,null,{"$f":"'VMware FINAL ORDER SUMMARY'!N96","v":0},{"$f":"'[1]VMware FINAL ORDER SUMMARY'!O75","v":""},null,{"$f":"'VMware FINAL ORDER SUMMARY'!S96","v":""}]
[{"$f":"'VMware FINAL ORDER SUMMARY'!$F97","v":0},null,{"$f":"'VMware FINAL ORDER SUMMARY'!H97","v":""},{"$f":"'VMware FINAL ORDER SUMMARY'!J97","v":0},{"$f":"'VMware FINAL ORDER SUMMARY'!K97","v":""},{"$f":"'VMware FINAL ORDER SUMMARY'!L97","v":""},{"$f":"'VMware FINAL ORDER SUMMARY'!M97","v":0},{"$f":"'VMware FINAL ORDER SUMMARY'!N97","v":""},{"$f":"'[1]VMware FINAL ORDER SUMMARY'!O76","v":""},{"$f":"'VMware FINAL ORDER SUMMARY'!P97","v":""},{"$f":"'VMware FINAL ORDER SUMMARY'!S97","v":0}]
[{"$f":"'VMware FINAL ORDER SUMMARY'!$F98","v":""},null,null,null,null,null,null,{"$f":"'VMware FINAL ORDER SUMMARY'!N98","v":0},{"$f":"'[1]VMware FINAL ORDER SUMMARY'!O77","v":""},null,{"$f":"'VMware FINAL ORDER SUMMARY'!S98","v":""}]
[{"$f":"'VMware FINAL ORDER SUMMARY'!$F99","v":0},null,{"$f":"'VMware FINAL ORDER SUMMARY'!H99","v":""},{"$f":"'VMware FINAL ORDER SUMMARY'!J99","v":0},{"$f":"'VMware FINAL ORDER SUMMARY'!K99","v":""},{"$f":"'VMware FINAL ORDER SUMMARY'!L99","v":""},{"$f":"'VMware FINAL ORDER SUMMARY'!M99","v":0},{"$f":"'VMware FINAL ORDER SUMMARY'!N99","v":""},{"$f":"'[1]VMware FINAL ORDER SUMMARY'!O78","v":""},{"$f":"'VMware FINAL ORDER SUMMARY'!P99","v":""},{"$f":"'VMware FINAL ORDER SUMMARY'!S99","v":0}]
[{"$f":"'VMware FINAL ORDER SUMMARY'!$F100","v":""},null,null,null,null,null,null,{"$f":"'VMware FINAL ORDER SUMMARY'!N100","v":0},{"$f":"'[1]VMware FINAL ORDER SUMMARY'!O79","v":""},null,{"$f":"'VMware FINAL ORDER SUMMARY'!S100","v":""}]
[]
["Maintenance Renewals"]
["Product",null,"Product Code","Qty","SnS Term","SnS Fee","SnS Total"]
[{"$f":"'VMware FINAL ORDER SUMMARY'!$F117","v":0},null,{"$f":"'VMware FINAL ORDER SUMMARY'!H117","v":""},{"$f":"'VMware FINAL ORDER SUMMARY'!J117","v":0},{"$f":"'VMware FINAL ORDER SUMMARY'!K117","v":0},{"$f":"'VMware FINAL ORDER SUMMARY'!L117","v":""},{"$f":"'VMware FINAL ORDER SUMMARY'!M117","v":0}]
[{"$f":"'VMware FINAL ORDER SUMMARY'!$F118","v":0},null,{"$f":"'VMware FINAL ORDER SUMMARY'!H118","v":""},{"$f":"'VMware FINAL ORDER SUMMARY'!J118","v":0},{"$f":"'VMware FINAL ORDER SUMMARY'!K118","v":0},{"$f":"'VMware FINAL ORDER SUMMARY'!L118","v":""},{"$f":"'VMware FINAL ORDER SUMMARY'!M118","v":0}]
[{"$f":"'VMware FINAL ORDER SUMMARY'!$F119","v":0},null,{"$f":"'VMware FINAL ORDER SUMMARY'!H119","v":""},{"$f":"'VMware FINAL ORDER SUMMARY'!J119","v":0},{"$f":"'VMware FINAL ORDER SUMMARY'!K119","v":0},{"$f":"'VMware FINAL ORDER SUMMARY'!L119","v":""},{"$f":"'VMware FINAL ORDER SUMMARY'!M119","v":0}]
[{"$f":"'VMware FINAL ORDER SUMMARY'!$F120","v":0},null,{"$f":"'VMware FINAL ORDER SUMMARY'!H120","v":""},{"$f":"'VMware FINAL ORDER SUMMARY'!J120","v":0},{"$f":"'VMware FINAL ORDER SUMMARY'!K120","v":0},{"$f":"'VMware FINAL ORDER SUMMARY'!L120","v":""},{"$f":"'VMware FINAL ORDER SUMMARY'!M120","v":0}]
[{"$f":"'VMware FINAL ORDER SUMMARY'!$F121","v":0},null,{"$f":"'VMware FINAL ORDER SUMMARY'!H121","v":""},{"$f":"'VMware FINAL ORDER SUMMARY'!J121","v":0},{"$f":"'VMware FINAL ORDER SUMMARY'!K121","v":0},{"$f":"'VMware FINAL ORDER SUMMARY'!L121","v":""},{"$f":"'VMware FINAL ORDER SUMMARY'!M121","v":0}]
[{"$f":"'VMware FINAL ORDER SUMMARY'!$F122","v":0},null,{"$f":"'VMware FINAL ORDER SUMMARY'!H122","v":""},{"$f":"'VMware FINAL ORDER SUMMARY'!J122","v":0},{"$f":"'VMware FINAL ORDER SUMMARY'!K122","v":0},{"$f":"'VMware FINAL ORDER SUMMARY'!L122","v":""},{"$f":"'VMware FINAL ORDER SUMMARY'!M122","v":0}]
[{"$f":"'VMware FINAL ORDER SUMMARY'!$F126","v":0},null,{"$f":"'VMware FINAL ORDER SUMMARY'!H126","v":0},{"$f":"'VMware FINAL ORDER SUMMARY'!J126","v":0},{"$f":"'VMware FINAL ORDER SUMMARY'!K126","v":0},{"$f":"'VMware FINAL ORDER SUMMARY'!L126","v":""},{"$f":"'VMware FINAL ORDER SUMMARY'!M126","v":0}]
[{"$f":"'VMware FINAL ORDER SUMMARY'!$F127","v":0},null,{"$f":"'VMware FINAL ORDER SUMMARY'!H127","v":0},{"$f":"'VMware FINAL ORDER SUMMARY'!J127","v":0},{"$f":"'VMware FINAL ORDER SUMMARY'!K127","v":0},{"$f":"'VMware FINAL ORDER SUMMARY'!L127","v":0},{"$f":"'VMware FINAL ORDER SUMMARY'!M127","v":0}]
[{"$f":"'VMware FINAL ORDER SUMMARY'!$F128","v":0},null,{"$f":"'VMware FINAL ORDER SUMMARY'!H128","v":0},{"$f":"'VMware FINAL ORDER SUMMARY'!J128","v":0},{"$f":"'VMware FINAL ORDER SUMMARY'!K128","v":0},{"$f":"'VMware FINAL ORDER SUMMARY'!L128","v":0},{"$f":"'VMware FINAL ORDER SUMMARY'!M128","v":0}]
[]
["PSO Credits"]
["Professional Services Credits",null,"Product Code","Qty","PSO Fee","PSO Total"]
[{"$f":"IF('VMware FINAL ORDER SUMMARY'!$J$107=\"\",\"\",'VMware FINAL ORDER SUMMARY'!$F107)","v":""},null,{"$f":"IF('VMware FINAL ORDER SUMMARY'!$J$107=\"\",\"\",'VMware FINAL ORDER SUMMARY'!H107)","v":""},{"$f":"'VMware FINAL ORDER SUMMARY'!J107","v":0},{"$f":"IF('VMware FINAL ORDER SUMMARY'!$J$107=\"\",\"\",'VMware FINAL ORDER SUMMARY'!K107)","v":""},{"$f":"'VMware FINAL ORDER SUMMARY'!L107","v":0}]
[]
[]
[]
[]
[]
[]
["GRAND TOTAL:",{"$f":"SUM(K23:K32,K37:K46,G50:G58,F62)","v":0}]